Body Name,Body,Service division categorisation,Expense Type,Date paid,Transaction Reference,Net,Supplier Name,Redacted/Excluded
East Lindsey District Council,http://statistics.data.gov.uk/id/local-authority/32UC,Waste Services Manager,Tyres,05/07/12,IJ00011326,660.6,B A BUSH & SON LIMITED, 
East Lindsey District Council,http://statistics.data.gov.uk/id/local-authority/32UC,Waste Services Manager,Tyres,05/07/12,IJ00011327,660.6,B A BUSH & SON LIMITED, 
East Lindsey District Council,http://statistics.data.gov.uk/id/local-authority/32UC,Waste Services Manager,Tyres,05/07/12,IJ00011341,700.6,B A BUSH & SON LIMITED, 
East Lindsey District Council,http://statistics.data.gov.uk/id/local-authority/32UC,Embassy Pool Manager,Other agencies,05/07/12,IJ00011317,4845.67,COMPETITION LINE (UK) LTD, 
East Lindsey District Council,http://statistics.data.gov.uk/id/local-authority/32UC,Business Development Manager,Professional & Contractors Fees,05/07/12,IJ00011460,1950.02,SID DENNIS & SONS LTD, 
East Lindsey District Council,http://statistics.data.gov.uk/id/local-authority/32UC,Customer Services Manager,Payments to Bodies in Respect of Income Collected,05/07/12,IJ00011416,542.06,F HUNT (COACH HIRE) LTD, 
East Lindsey District Council,http://statistics.data.gov.uk/id/local-authority/32UC,Chief Executive,Agency Staff,05/07/12,IJ00011402,15552.55,BOSTON BOROUGH COUNCIL, 
East Lindsey District Council,http://statistics.data.gov.uk/id/local-authority/32UC,Chief Executive,Agency Staff,05/07/12,IJ00011403,3203.57,BOSTON BOROUGH COUNCIL, 
East Lindsey District Council,http://statistics.data.gov.uk/id/local-authority/32UC,Corporate Accounting,Postages,05/07/12,IJ00011474,500,ROYAL MAIL, 
East Lindsey District Council,http://statistics.data.gov.uk/id/local-authority/32UC,Hsg Advice & Homelessness TL,Rent and Lease Payments,05/07/12,IJ00011499,2413.68,LONGHURST HOMES, 
East Lindsey District Council,http://statistics.data.gov.uk/id/local-authority/32UC,Theatre Manager,Grants and Contributions to Outside Bodies- No Service Recei,05/07/12,IJ00011407,630,LINCOLNSHIRE AGRICULTURAL SOCIETY, 
East Lindsey District Council,http://statistics.data.gov.uk/id/local-authority/32UC,Customer Services Manager,Payments to Bodies in Respect of Income Collected,05/07/12,IJ00011407,679.5,LINCOLNSHIRE AGRICULTURAL SOCIETY, 
East Lindsey District Council,http://statistics.data.gov.uk/id/local-authority/32UC,Customer Services Manager,Payments to Bodies in Respect of Income Collected,05/07/12,IJ00011407,2444.85,LINCOLNSHIRE AGRICULTURAL SOCIETY, 
East Lindsey District Council,http://statistics.data.gov.uk/id/local-authority/32UC,Customer Services Manager,Payments to Bodies in Respect of Income Collected,05/07/12,IJ00011407,483.75,LINCOLNSHIRE AGRICULTURAL SOCIETY, 
East Lindsey District Council,http://statistics.data.gov.uk/id/local-authority/32UC,Customer Services Manager,Payments to Bodies in Respect of Income Collected,05/07/12,IJ00011407,140.4,LINCOLNSHIRE AGRICULTURAL SOCIETY, 
East Lindsey District Council,http://statistics.data.gov.uk/id/local-authority/32UC,Customer Services Manager,Payments to Bodies in Respect of Income Collected,05/07/12,IJ00011407,492.75,LINCOLNSHIRE AGRICULTURAL SOCIETY, 
East Lindsey District Council,http://statistics.data.gov.uk/id/local-authority/32UC,Cultural & Related Services,Other Miscellaneous Expenses,05/07/12,IJ00010998,825,BRACKENBOROUGH LIMITED, 
East Lindsey District Council,http://statistics.data.gov.uk/id/local-authority/32UC,Policy & Project Manager,Catering,05/07/12,IJ00011454,500.5,WORKFORCE UNLIMITED, 
East Lindsey District Council,http://statistics.data.gov.uk/id/local-authority/32UC,Enforcement Team Leader,Payments to Bodies in Respect of Income Collected,05/07/12,IJ00011477,13849.51,TESCOS STORES LTD, 
East Lindsey District Council,http://statistics.data.gov.uk/id/local-authority/32UC,Hsg Advice & Homelessness TL,Other Miscellaneous Expenses,05/07/12,IJ00011401,1800,ORCHARD INFORMATION SYSTEMS LIMITED, 
East Lindsey District Council,http://statistics.data.gov.uk/id/local-authority/32UC,Development Control,Professional & Contractors Fees,05/07/12,IJ00011332,1440,HOGSTHORPE VILLAGE HALL, 
East Lindsey District Council,http://statistics.data.gov.uk/id/local-authority/32UC,Service Development Manager,Other Private Contractors,05/07/12,IJ00011494,141.67,EKM LTD, 
East Lindsey District Council,http://statistics.data.gov.uk/id/local-authority/32UC,Service Development Manager,Other Private Contractors,05/07/12,IJ00011494,191.67,EKM LTD, 
East Lindsey District Council,http://statistics.data.gov.uk/id/local-authority/32UC,Service Development Manager,Other Private Contractors,05/07/12,IJ00011494,133.22,EKM LTD, 
East Lindsey District Council,http://statistics.data.gov.uk/id/local-authority/32UC,Service Development Manager,Other Private Contractors,05/07/12,IJ00011494,320.83,EKM LTD, 
East Lindsey District Council,http://statistics.data.gov.uk/id/local-authority/32UC,Service Development Manager,Other Private Contractors,05/07/12,IJ00011494,15,EKM LTD, 
East Lindsey District Council,http://statistics.data.gov.uk/id/local-authority/32UC,Service Development Manager,Other Private Contractors,05/07/12,IJ00011494,78,EKM LTD, 
East Lindsey District Council,http://statistics.data.gov.uk/id/local-authority/32UC,Service Development Manager,Other Private Contractors,05/07/12,IJ00011494,279.44,EKM LTD, 
East Lindsey District Council,http://statistics.data.gov.uk/id/local-authority/32UC,Service Development Manager,Other Private Contractors,05/07/12,IJ00011494,420,EKM LTD, 
East Lindsey District Council,http://statistics.data.gov.uk/id/local-authority/32UC,Service Development Manager,Other Private Contractors,05/07/12,IJ00011494,377,EKM LTD, 
East Lindsey District Council,http://statistics.data.gov.uk/id/local-authority/32UC,Policy & Project Manager,Other Miscellaneous Expenses,05/07/12,IJ00011434,560,FOXHALL CONSTRUCTION LTD, 
East Lindsey District Council,http://statistics.data.gov.uk/id/local-authority/32UC,Policy & Project Manager,Gross Pay,05/07/12,IJ00011420,700,FOXHALL CONSTRUCTION LTD, 
East Lindsey District Council,http://statistics.data.gov.uk/id/local-authority/32UC,Horncastle Pool Manager,Furniture and Equipment,05/07/12,IJ00011500,25.45,ESPO, 
East Lindsey District Council,http://statistics.data.gov.uk/id/local-authority/32UC,Meridian Facility Manager,Materials and Consumables,05/07/12,IJ00011500,203.98,ESPO, 
East Lindsey District Council,http://statistics.data.gov.uk/id/local-authority/32UC,Meridian Facility Manager,Stationery,05/07/12,IJ00011500,30.15,ESPO, 
East Lindsey District Council,http://statistics.data.gov.uk/id/local-authority/32UC,Horncastle Pool Manager,Materials and Consumables,05/07/12,IJ00011500,14.59,ESPO, 
East Lindsey District Council,http://statistics.data.gov.uk/id/local-authority/32UC,Service Development Manager,Furniture and Equipment,05/07/12,IJ00011500,17.32,ESPO, 
East Lindsey District Council,http://statistics.data.gov.uk/id/local-authority/32UC,Service Development Manager,Materials and Consumables,05/07/12,IJ00011500,146,ESPO, 
East Lindsey District Council,http://statistics.data.gov.uk/id/local-authority/32UC,Service Development Manager,Materials and Consumables,05/07/12,IJ00011500,452.99,ESPO, 
East Lindsey District Council,http://statistics.data.gov.uk/id/local-authority/32UC,Horncastle Pool Manager,Furniture and Equipment,05/07/12,IJ00011501,9.5,ESPO, 
East Lindsey District Council,http://statistics.data.gov.uk/id/local-authority/32UC,Meridian Facility Manager,Materials and Consumables,05/07/12,IJ00011501,23.6,ESPO, 
East Lindsey District Council,http://statistics.data.gov.uk/id/local-authority/32UC,Meridian Facility Manager,Stationery,05/07/12,IJ00011501,11,ESPO, 
East Lindsey District Council,http://statistics.data.gov.uk/id/local-authority/32UC,Theatre Manager,Cleaning Contract,05/07/12,IJ00011501,448.5,ESPO, 
East Lindsey District Council,http://statistics.data.gov.uk/id/local-authority/32UC,Theatre Manager,Stationery,05/07/12,IJ00011501,197.55,ESPO, 
East Lindsey District Council,http://statistics.data.gov.uk/id/local-authority/32UC,Service Development Manager,Materials and Consumables,05/07/12,IJ00011501,14,ESPO, 
East Lindsey District Council,http://statistics.data.gov.uk/id/local-authority/32UC,Health Team Leader,Stationery,05/07/12,IJ00011501,127.9,ESPO, 
East Lindsey District Council,http://statistics.data.gov.uk/id/local-authority/32UC,Service Development Manager,Materials and Consumables,05/07/12,IJ00011501,1158.58,ESPO, 
East Lindsey District Council,http://statistics.data.gov.uk/id/local-authority/32UC,Service Development Manager,Materials and Consumables,05/07/12,IJ00011501,749.41,ESPO, 
East Lindsey District Council,http://statistics.data.gov.uk/id/local-authority/32UC,Collection Fund,Payment to NNDR Pool,05/07/12,IJ00011484,1489473,DEPARTMENT FOR COMMUNITIES AND LOCAL, 
East Lindsey District Council,http://statistics.data.gov.uk/id/local-authority/32UC,Corporate Accounting,Non Domestic Rates,05/07/12,IJ00011484,-585450,DEPARTMENT FOR COMMUNITIES AND LOCAL, 
East Lindsey District Council,http://statistics.data.gov.uk/id/local-authority/32UC,Technical Services Team Leader,Professional & Contractors Fees,05/07/12,IJ00011377,515,ALAN WOOD & PARTNERS, 
East Lindsey District Council,http://statistics.data.gov.uk/id/local-authority/32UC,Theatre Manager,Performers and Entertainers Fees,05/07/12,IJ00011476,8000,ORIGINAL ENTERTAINMENT PROGRAMMING LTD, 
East Lindsey District Council,http://statistics.data.gov.uk/id/local-authority/32UC,Waste Services Manager,Agency Staff,05/07/12,IJ00011355,5229.08,CLOSE INVOICE FINANCE LTD, 
East Lindsey District Council,http://statistics.data.gov.uk/id/local-authority/32UC,Capital WIP,Grants and Contributions to Outside Bodies- No Service Recei,05/07/12,IJ00011426,29700,WATERLOO HOUSING GROUP LTD, 
East Lindsey District Council,http://statistics.data.gov.uk/id/local-authority/32UC,Capital WIP,Grants and Contributions to Outside Bodies- No Service Recei,05/07/12,IJ00011428,66000,WATERLOO HOUSING GROUP LTD, 
East Lindsey District Council,http://statistics.data.gov.uk/id/local-authority/32UC,Enforcement Team Leader,Payments to Bodies in Respect of Income Collected,05/07/12,IJ00011475,25800.03,INNES ENGLAND COMMERCIAL PROPERTY, 
East Lindsey District Council,http://statistics.data.gov.uk/id/local-authority/32UC,Cultural & Related Services,Advertising - Events,05/07/12,IJ00011369,11743.67,LAVA, 
East Lindsey District Council,http://statistics.data.gov.uk/id/local-authority/32UC,Business Development Manager,Other Miscellaneous Expenses,05/07/12,IJ00011435,12815.16,LAVA, 
East Lindsey District Council,http://statistics.data.gov.uk/id/local-authority/32UC,Business Development Manager,Other Miscellaneous Expenses,05/07/12,IJ00011436,1827.6,LAVA, 
East Lindsey District Council,http://statistics.data.gov.uk/id/local-authority/32UC,TL Property,Service Charge - General,05/07/12,IJ00011408,1074.67,EAST LINDSEY CITIZENS ADVICE BUREAU, 
East Lindsey District Council,http://statistics.data.gov.uk/id/local-authority/32UC,Customer Services Manager,Payments to Bodies in Respect of Income Collected,05/07/12,IJ00011439,654.9,THE COTTAGE MUSEUM WOODHALL SPA, 
East Lindsey District Council,http://statistics.data.gov.uk/id/local-authority/32UC,Service Development Manager,Agency Staff,05/07/12,IJ00011400,2632.18,THE WORKSHOP (WISBECH) LIMITED, 
East Lindsey District Council,http://statistics.data.gov.uk/id/local-authority/32UC,Customer Services Manager,Payments to Bodies in Respect of Income Collected,05/07/12,IJ00011440,1612.77,NATIONAL EXPRESS CREDIT CONTROL DEPT, 
East Lindsey District Council,http://statistics.data.gov.uk/id/local-authority/32UC,Customer Services Manager,Payments to Bodies in Respect of Income Collected,05/07/12,IJ00011440,2090.61,NATIONAL EXPRESS CREDIT CONTROL DEPT, 
East Lindsey District Council,http://statistics.data.gov.uk/id/local-authority/32UC,Customer Services Manager,Payments to Bodies in Respect of Income Collected,05/07/12,IJ00011440,755.97,NATIONAL EXPRESS CREDIT CONTROL DEPT, 
East Lindsey District Council,http://statistics.data.gov.uk/id/local-authority/32UC,Customer Services Manager,Payments to Bodies in Respect of Income Collected,05/07/12,IJ00011440,253.21,NATIONAL EXPRESS CREDIT CONTROL DEPT, 
East Lindsey District Council,http://statistics.data.gov.uk/id/local-authority/32UC,Hsg Bens Quality Assurance TL,Professional & Contractors Fees,05/07/12,IJ00011430,72072,COMPASS POINT BUSINESS SERVICES, 
East Lindsey District Council,http://statistics.data.gov.uk/id/local-authority/32UC,Corporate Accounting,Compass Point Business Services,05/07/12,IJ00011473,426944.58,COMPASS POINT BUSINESS SERVICES, 
East Lindsey District Council,http://statistics.data.gov.uk/id/local-authority/32UC,Business Development Manager,Clothing Uniforms And Laundry,05/07/12,IJ00011433,1270.9,PHS LAUNDRYSERV, 
East Lindsey District Council,http://statistics.data.gov.uk/id/local-authority/32UC,Theatre Manager,Other Miscellaneous Expenses,05/07/12,IJ00011395,1163.51,MOLSON COORS BREWERS LTD, 
East Lindsey District Council,http://statistics.data.gov.uk/id/local-authority/32UC,Capital WIP,Grants and Contributions to Outside Bodies- No Service Recei,05/07/12,IJ00011323,4827.18,HARRIS BUILDING SERVICES, 
East Lindsey District Council,http://statistics.data.gov.uk/id/local-authority/32UC,Hsg Private Sector TL,Other Income,05/07/12,IJ00011323,-431,HARRIS BUILDING SERVICES, 
East Lindsey District Council,http://statistics.data.gov.uk/id/local-authority/32UC,Capital WIP,Works to Buildings (main Contractor),05/07/12,IJ00011472,14356.57,J TOMLINSON LTD, 
East Lindsey District Council,http://statistics.data.gov.uk/id/local-authority/32UC,Communications Manager,Advertising - Legal And Public,05/07/12,IJ00011368,4636,PEBBLEPRINT LTD, 
East Lindsey District Council,http://statistics.data.gov.uk/id/local-authority/32UC,Sports Centre Manager,Other agencies,05/07/12,IJ00011415,507.37,VEOLIA ES (UK) LTD, 
East Lindsey District Council,http://statistics.data.gov.uk/id/local-authority/32UC,TL Property,Buildings Maintenance - Programmed,05/07/12,IJ00011471,5448.75,ALFRED BAGNALL & SONS (EAST MIDLANDS) LTD, 
East Lindsey District Council,http://statistics.data.gov.uk/id/local-authority/32UC,Hsg Advice & Homelessness TL,Bed and Breakfast Accommodation (Homelessness Service),05/07/12,IJ00011382,850,SAVONA HOTEL, 
East Lindsey District Council,http://statistics.data.gov.uk/id/local-authority/32UC,Theatre Manager,Performers and Entertainers Fees,05/07/12,IJ00011404,4468.38,STAGE, 
East Lindsey District Council,http://statistics.data.gov.uk/id/local-authority/32UC,Theatre Manager,Performers and Entertainers Fees,05/07/12,IJ00011404,-3246,STAGE, 
East Lindsey District Council,http://statistics.data.gov.uk/id/local-authority/32UC,Horncastle Pool Manager,Professional & Contractors Fees,05/07/12,IJ00011482,103.5,KINGS ARMOURED SECURITY SERVICES LTD, 
East Lindsey District Council,http://statistics.data.gov.uk/id/local-authority/32UC,Embassy Pool Manager,Professional & Contractors Fees,05/07/12,IJ00011482,103.5,KINGS ARMOURED SECURITY SERVICES LTD, 
East Lindsey District Council,http://statistics.data.gov.uk/id/local-authority/32UC,Embassy Pool Manager,Professional & Contractors Fees,05/07/12,IJ00011482,32.5,KINGS ARMOURED SECURITY SERVICES LTD, 
East Lindsey District Council,http://statistics.data.gov.uk/id/local-authority/32UC,Theatre Manager,Professional & Contractors Fees,05/07/12,IJ00011482,57.5,KINGS ARMOURED SECURITY SERVICES LTD, 
East Lindsey District Council,http://statistics.data.gov.uk/id/local-authority/32UC,Sports Centre Manager,Professional & Contractors Fees,05/07/12,IJ00011482,103.5,KINGS ARMOURED SECURITY SERVICES LTD, 
East Lindsey District Council,http://statistics.data.gov.uk/id/local-authority/32UC,Meridian Facility Manager,Professional & Contractors Fees,05/07/12,IJ00011482,103.5,KINGS ARMOURED SECURITY SERVICES LTD, 
East Lindsey District Council,http://statistics.data.gov.uk/id/local-authority/32UC,Enforcement Team Leader,Professional & Contractors Fees,05/07/12,IJ00011482,195,KINGS ARMOURED SECURITY SERVICES LTD, 
East Lindsey District Council,http://statistics.data.gov.uk/id/local-authority/32UC,Corporate Accounting,Professional & Contractors Fees,05/07/12,IJ00011482,149.5,KINGS ARMOURED SECURITY SERVICES LTD, 
East Lindsey District Council,http://statistics.data.gov.uk/id/local-authority/32UC,Cultural & Related Services,Professional & Contractors Fees,05/07/12,IJ00011496,1000,SARA BULLIMORE, 
East Lindsey District Council,http://statistics.data.gov.uk/id/local-authority/32UC,Cultural & Related Services,Other Miscellaneous Expenses,05/07/12,IJ00011452,830,DURANT CRICKET, 
East Lindsey District Council,http://statistics.data.gov.uk/id/local-authority/32UC,Improvement & Development Mngr,Clothing Uniforms And Laundry,05/07/12,IJ00011354,706.6,SAFETY MANAGEMENT INT GROUP, 
East Lindsey District Council,http://statistics.data.gov.uk/id/local-authority/32UC,Organisational Dev Manager,Staff Training Expenses,05/07/12,IJ00011388,4050,TOTEM TRAINING, 
East Lindsey District Council,http://statistics.data.gov.uk/id/local-authority/32UC,Service Development Manager,Materials and Consumables,05/07/12,IJ00011450,1700,EUROTECH ENVIRONMENTAL LTD, 
East Lindsey District Council,http://statistics.data.gov.uk/id/local-authority/32UC,Hsg Advice & Homelessness TL,Other Miscellaneous Expenses,05/07/12,IJ00011444,500,REDACTED PERSONAL INFORMATION,REDACT
East Lindsey District Council,http://statistics.data.gov.uk/id/local-authority/32UC,Capital WIP,Grants and Contributions to Outside Bodies- No Service Recei,05/07/12,IJ00011466,2294.23,R M H ELECTRICAL, 
East Lindsey District Council,http://statistics.data.gov.uk/id/local-authority/32UC,Enforcement Team Leader,Payments to Bodies in Respect of Income Collected,05/07/12,IJ00011467,74101.33,WORKMAN LLP, 
East Lindsey District Council,http://statistics.data.gov.uk/id/local-authority/32UC,Waste Services Manager,Tyres,12/07/12,IJ00011661,703.2,B A BUSH & SON LIMITED, 
East Lindsey District Council,http://statistics.data.gov.uk/id/local-authority/32UC,Business Development Manager,Materials and Consumables,12/07/12,IJ00011624,1682.5,JACKSON BUILDING CENTRES LTD, 
East Lindsey District Council,http://statistics.data.gov.uk/id/local-authority/32UC,Service Development Manager,Buildings Maintenance - Programmed,12/07/12,IJ00011750,5000,J MELTON LTD, 
East Lindsey District Council,http://statistics.data.gov.uk/id/local-authority/32UC,Collection Fund,Precept - Lincolnshire Police,12/07/12,IJ00011798,893833.25,LOCAL POLICE AUTHORITY FUND ACCOUNT, 
East Lindsey District Council,http://statistics.data.gov.uk/id/local-authority/32UC,Capital WIP,Grants and Contributions to Outside Bodies- No Service Recei,12/07/12,IJ00011740,7713.78,COTTS BUILDERS AND CONTRACTORS, 
East Lindsey District Council,http://statistics.data.gov.uk/id/local-authority/32UC,Enforcement Team Leader,Car Parking Charges,12/07/12,IJ00011689,-1438.4,PAPERWORK UK LTD, 
East Lindsey District Council,http://statistics.data.gov.uk/id/local-authority/32UC,Corporate Accounting,Subscriptions to Organisations and Other Bodies,12/07/12,IJ00011510,2936,LINCOLNSHIRE COUNTY COUNCIL, 
East Lindsey District Council,http://statistics.data.gov.uk/id/local-authority/32UC,Collection Fund,Precept- Lincolnshire County Council,12/07/12,IJ00011796,5110516,LINCOLNSHIRE COUNTY COUNCIL, 
East Lindsey District Council,http://statistics.data.gov.uk/id/local-authority/32UC,Customer Services Manager,Rent and Lease Payments,12/07/12,IJ00011778,1231.25,LINCOLNSHIRE COUNTY COUNCIL, 
East Lindsey District Council,http://statistics.data.gov.uk/id/local-authority/32UC,Meridian Facility Manager,Buildings Maintenance - Responsive,12/07/12,IJ00011577,1980.6,SEYMOUR & CASTLE LTD, 
East Lindsey District Council,http://statistics.data.gov.uk/id/local-authority/32UC,TL IT - System Support,Computer Software Licence Costs,12/07/12,IJ00011549,553,CROWN COMPUTING LIMITED, 
East Lindsey District Council,http://statistics.data.gov.uk/id/local-authority/32UC,Planning & Housing Policy Manager,Other Miscellaneous Expenses,12/07/12,IJ00011627,3500,LEICESTERSHIRE COUNTY COUNCIL, 
East Lindsey District Council,http://statistics.data.gov.uk/id/local-authority/32UC,TL Property,Buildings Maintenance - Responsive,12/07/12,IJ00011761,723.01,DEVLIN DECORATORS LTD, 
East Lindsey District Council,http://statistics.data.gov.uk/id/local-authority/32UC,TL IT - Infrastructure,Computer Software Purchase,12/07/12,IJ00011547,10767,COGNITIVE NETWORK SOLUTIONS LTD, 
East Lindsey District Council,http://statistics.data.gov.uk/id/local-authority/32UC,Service Development Manager,Buildings Maintenance - Responsive,12/07/12,IJ00011521,280,EKM LTD, 
East Lindsey District Council,http://statistics.data.gov.uk/id/local-authority/32UC,Service Development Manager,Buildings Maintenance - Responsive,12/07/12,IJ00011521,155,EKM LTD, 
East Lindsey District Council,http://statistics.data.gov.uk/id/local-authority/32UC,Service Development Manager,Buildings Maintenance - Responsive,12/07/12,IJ00011521,396,EKM LTD, 
East Lindsey District Council,http://statistics.data.gov.uk/id/local-authority/32UC,Service Development Manager,Buildings Maintenance - Responsive,12/07/12,IJ00011521,448.06,EKM LTD, 
East Lindsey District Council,http://statistics.data.gov.uk/id/local-authority/32UC,Service Development Manager,Buildings Maintenance - Responsive,12/07/12,IJ00011521,83,EKM LTD, 
East Lindsey District Council,http://statistics.data.gov.uk/id/local-authority/32UC,Service Development Manager,Buildings Maintenance - Responsive,12/07/12,IJ00011521,60,EKM LTD, 
East Lindsey District Council,http://statistics.data.gov.uk/id/local-authority/32UC,Business Development Manager,Other Miscellaneous Expenses,12/07/12,IJ00011700,2000,CITY GRAPHICS PARTNERSHIP, 
East Lindsey District Council,http://statistics.data.gov.uk/id/local-authority/32UC,BALANCE  SHEET,Payroll Sacrifice Nursery Voucher,12/07/12,IJ00011767,2413,SODEXHO, 
East Lindsey District Council,http://statistics.data.gov.uk/id/local-authority/32UC,Sports Development,Other Miscellaneous Expenses,12/07/12,IJ00011708,4000,LINCOLNSHIRE SPORTS PARTNERSHIP, 
East Lindsey District Council,http://statistics.data.gov.uk/id/local-authority/32UC,Meridian Facility Manager,Cleaning Contract,12/07/12,IJ00011503,262.93,ESPO, 
East Lindsey District Council,http://statistics.data.gov.uk/id/local-authority/32UC,Waste Services Manager,Materials and Consumables,12/07/12,IJ00011503,11.5,ESPO, 
East Lindsey District Council,http://statistics.data.gov.uk/id/local-authority/32UC,Meridian Facility Manager,Stationery,12/07/12,IJ00011503,10.2,ESPO, 
East Lindsey District Council,http://statistics.data.gov.uk/id/local-authority/32UC,Cultural & Related Services,Furniture and Equipment,12/07/12,IJ00011503,24.91,ESPO, 
East Lindsey District Council,http://statistics.data.gov.uk/id/local-authority/32UC,Horncastle Pool Manager,Materials and Consumables,12/07/12,IJ00011503,272.16,ESPO, 
East Lindsey District Council,http://statistics.data.gov.uk/id/local-authority/32UC,Embassy Pool Manager,Cleaning Contract,12/07/12,IJ00011503,211.68,ESPO, 
East Lindsey District Council,http://statistics.data.gov.uk/id/local-authority/32UC,Horncastle Pool Manager,Cleaning Contract,12/07/12,IJ00011503,108.53,ESPO, 
East Lindsey District Council,http://statistics.data.gov.uk/id/local-authority/32UC,Theatre Manager,Cleaning Contract,12/07/12,IJ00011503,690.02,ESPO, 
East Lindsey District Council,http://statistics.data.gov.uk/id/local-authority/32UC,Commercial Team Leader,Stationery,12/07/12,IJ00011503,33.13,ESPO, 
East Lindsey District Council,http://statistics.data.gov.uk/id/local-authority/32UC,Theatre Manager,Cleaning Contract,12/07/12,IJ00011503,25.7,ESPO, 
East Lindsey District Council,http://statistics.data.gov.uk/id/local-authority/32UC,Service Development Manager,Materials and Consumables,12/07/12,IJ00011503,390,ESPO, 
East Lindsey District Council,http://statistics.data.gov.uk/id/local-authority/32UC,Theatre Manager,Cleaning Contract,12/07/12,IJ00011503,68.59,ESPO, 
East Lindsey District Council,http://statistics.data.gov.uk/id/local-authority/32UC,Hsg Advice & Homelessness TL,Rent and Lease Payments,12/07/12,IJ00011561,1018.8,NEW LINX HOUSING TRUST, 
East Lindsey District Council,http://statistics.data.gov.uk/id/local-authority/32UC,Hsg Advice & Homelessness TL,Rent and Lease Payments,12/07/12,IJ00011690,1107.96,NEW LINX HOUSING TRUST, 
East Lindsey District Council,http://statistics.data.gov.uk/id/local-authority/32UC,Hsg Advice & Homelessness TL,Rent and Lease Payments,12/07/12,IJ00011691,1126.92,NEW LINX HOUSING TRUST, 
East Lindsey District Council,http://statistics.data.gov.uk/id/local-authority/32UC,Hsg Advice & Homelessness TL,Rent and Lease Payments,12/07/12,IJ00011692,1107.96,NEW LINX HOUSING TRUST, 
East Lindsey District Council,http://statistics.data.gov.uk/id/local-authority/32UC,Hsg Advice & Homelessness TL,Rent and Lease Payments,12/07/12,IJ00011693,1107.96,NEW LINX HOUSING TRUST, 
East Lindsey District Council,http://statistics.data.gov.uk/id/local-authority/32UC,Hsg Advice & Homelessness TL,Rent and Lease Payments,12/07/12,IJ00011694,1072.44,NEW LINX HOUSING TRUST, 
East Lindsey District Council,http://statistics.data.gov.uk/id/local-authority/32UC,Hsg Advice & Homelessness TL,Rent and Lease Payments,12/07/12,IJ00011695,1107.96,NEW LINX HOUSING TRUST, 
East Lindsey District Council,http://statistics.data.gov.uk/id/local-authority/32UC,Hsg Advice & Homelessness TL,Rent and Lease Payments,12/07/12,IJ00011696,1126.92,NEW LINX HOUSING TRUST, 
East Lindsey District Council,http://statistics.data.gov.uk/id/local-authority/32UC,Hsg Advice & Homelessness TL,Rent and Lease Payments,12/07/12,IJ00011697,1200.48,NEW LINX HOUSING TRUST, 
East Lindsey District Council,http://statistics.data.gov.uk/id/local-authority/32UC,Corporate Accounting,Commercial Vehicle Lease,12/07/12,IJ00011638,614.18,TJS, 
East Lindsey District Council,http://statistics.data.gov.uk/id/local-authority/32UC,Corporate Accounting,Computer Hardware Purchase,12/07/12,IJ00011684,650,CHRISTOPHER DONKIN, 
East Lindsey District Council,http://statistics.data.gov.uk/id/local-authority/32UC,Democracy Manager,Grants and Contributions to Outside Bodies- No Service Recei,12/07/12,IJ00011595,1550,AUTHORPE VILLAGE HALL, 
East Lindsey District Council,http://statistics.data.gov.uk/id/local-authority/32UC,Waste Services Manager,Agency Staff,12/07/12,IJ00011514,4912.94,CLOSE INVOICE FINANCE LTD, 
East Lindsey District Council,http://statistics.data.gov.uk/id/local-authority/32UC,Waste Services Manager,Agency Staff,12/07/12,IJ00011514,68.33,CLOSE INVOICE FINANCE LTD, 
East Lindsey District Council,http://statistics.data.gov.uk/id/local-authority/32UC,Waste Services Manager,Agency Staff,12/07/12,IJ00011628,5285.76,CLOSE INVOICE FINANCE LTD, 
East Lindsey District Council,http://statistics.data.gov.uk/id/local-authority/32UC,Waste Services Manager,Agency Staff,12/07/12,IJ00011628,45.55,CLOSE INVOICE FINANCE LTD, 
East Lindsey District Council,http://statistics.data.gov.uk/id/local-authority/32UC,Embassy Pool Manager,Materials and Consumables,12/07/12,IJ00011801,598,SIEMENS PLC, 
East Lindsey District Council,http://statistics.data.gov.uk/id/local-authority/32UC,Waste Services Manager,Staff Recruitment,12/07/12,IJ00011601,699.3,NORTHCLIFFE MEDIA LIMITED, 
East Lindsey District Council,http://statistics.data.gov.uk/id/local-authority/32UC,Meridian Facility Manager,Purchase Of Goods For Resale,12/07/12,IJ00011520,1195.78,SRS LEISURE, 
East Lindsey District Council,http://statistics.data.gov.uk/id/local-authority/32UC,TL IT - Network & Comms,Professional & Contractors Fees,12/07/12,IJ00011565,3387.95,VTEQ LIMITED, 
East Lindsey District Council,http://statistics.data.gov.uk/id/local-authority/32UC,TL IT - Infrastructure,Computer Software Licence Costs,12/07/12,IJ00011566,3750,VTEQ LIMITED, 
East Lindsey District Council,http://statistics.data.gov.uk/id/local-authority/32UC,Enforcement Team Leader,Other Miscellaneous Expenses,12/07/12,IJ00011517,6548.77,RIGGOTT & CO LTD, 
East Lindsey District Council,http://statistics.data.gov.uk/id/local-authority/32UC,Development Control,Professional & Contractors Fees,12/07/12,IJ00011622,1465,HAYMARKET PUBLISHING SERVICES LTD, 
East Lindsey District Council,http://statistics.data.gov.uk/id/local-authority/32UC,Waste Services Manager,Agency Staff,12/07/12,IJ00011620,1373,LINCS MOTORHOMES LTD, 
East Lindsey District Council,http://statistics.data.gov.uk/id/local-authority/32UC,TL Partnerships & Grants,Grants and Contributions to Outside Bodies- No Service Recei,12/07/12,IJ00011507,3600,THE KINGS OUTREACH, 
East Lindsey District Council,http://statistics.data.gov.uk/id/local-authority/32UC,Meridian Facility Manager,Furniture and Equipment,12/07/12,IJ00011712,625,FITLINXX UK LTD, 
East Lindsey District Council,http://statistics.data.gov.uk/id/local-authority/32UC,Development Control,Agency Staff,12/07/12,IJ00011537,7162.05,LGS LIMITED, 
East Lindsey District Council,http://statistics.data.gov.uk/id/local-authority/32UC,Meridian Facility Manager,Public Courses and Workshops,12/07/12,IJ00011715,900,DONNA MAHER, 
East Lindsey District Council,http://statistics.data.gov.uk/id/local-authority/32UC,Hsg Advice & Homelessness TL,Bed and Breakfast Accommodation (Homelessness Service),12/07/12,IJ00011554,1194,THE BRACKENHURST GUESTHOUSE, 
East Lindsey District Council,http://statistics.data.gov.uk/id/local-authority/32UC,TL Partnerships & Grants,Grants and Contributions to Outside Bodies- No Service Recei,12/07/12,IJ00011585,4390,EAST KIRKBY VILLAGE HALL, 
East Lindsey District Council,http://statistics.data.gov.uk/id/local-authority/32UC,Housing Support TL,Rent and Lease Payments,12/07/12,IJ00011508,937.5,TOTEMIC LTD, 
East Lindsey District Council,http://statistics.data.gov.uk/id/local-authority/32UC,Capital WIP,Grants and Contributions to Outside Bodies- No Service Recei,12/07/12,IJ00011742,4419.7,HARRIS BUILDING SERVICES, 
East Lindsey District Council,http://statistics.data.gov.uk/id/local-authority/32UC,Hsg Private Sector TL,Other Income,12/07/12,IJ00011742,-394.62,HARRIS BUILDING SERVICES, 
East Lindsey District Council,http://statistics.data.gov.uk/id/local-authority/32UC,Democracy Manager,Grants and Contributions to Outside Bodies- No Service Recei,12/07/12,IJ00011596,2000,HOLTON LE CLAY MERC, 
East Lindsey District Council,http://statistics.data.gov.uk/id/local-authority/32UC,Policy & Project Manager,Catering,12/07/12,IJ00011543,500.5,CAFE & CREAM, 
East Lindsey District Council,http://statistics.data.gov.uk/id/local-authority/32UC,Capital WIP,Grants and Contributions to Outside Bodies- No Service Recei,12/07/12,IJ00011511,6756.81,WOODHALL SPA PARISH COUNCIL, 
East Lindsey District Council,http://statistics.data.gov.uk/id/local-authority/32UC,Service Development Manager,Maintenance,12/07/12,IJ00011774,60,GRS SIGN CO LTD, 
East Lindsey District Council,http://statistics.data.gov.uk/id/local-authority/32UC,Business Development Manager,Other Miscellaneous Expenses,12/07/12,IJ00011774,791.71,GRS SIGN CO LTD, 
East Lindsey District Council,http://statistics.data.gov.uk/id/local-authority/32UC,TL Property,Buildings Maintenance - Responsive,12/07/12,IJ00011774,12,GRS SIGN CO LTD, 
East Lindsey District Council,http://statistics.data.gov.uk/id/local-authority/32UC,Technical Services Team Leader,Buildings Maintenance - Programmed,12/07/12,IJ00011774,30,GRS SIGN CO LTD, 
East Lindsey District Council,http://statistics.data.gov.uk/id/local-authority/32UC,Meridian Facility Manager,Furniture and Equipment,12/07/12,IJ00011774,15.75,GRS SIGN CO LTD, 
East Lindsey District Council,http://statistics.data.gov.uk/id/local-authority/32UC,Theatre Manager,Telephones,12/07/12,IJ00011774,4594.89,GRS SIGN CO LTD, 
East Lindsey District Council,http://statistics.data.gov.uk/id/local-authority/32UC,Waste Services Manager,Maintenance,12/07/12,IJ00011774,156,GRS SIGN CO LTD, 
East Lindsey District Council,http://statistics.data.gov.uk/id/local-authority/32UC,Business Development Manager,Film and Entertainment Costs,12/07/12,IJ00011774,124.44,GRS SIGN CO LTD, 
East Lindsey District Council,http://statistics.data.gov.uk/id/local-authority/32UC,Hsg Advice & Homelessness TL,Maintenance,12/07/12,IJ00011774,30,GRS SIGN CO LTD, 
East Lindsey District Council,http://statistics.data.gov.uk/id/local-authority/32UC,Capital WIP,Works to Buildings (Sub Contractors),12/07/12,IJ00011774,1195.72,GRS SIGN CO LTD, 
East Lindsey District Council,http://statistics.data.gov.uk/id/local-authority/32UC,Enforcement Team Leader,Furniture and Equipment,12/07/12,IJ00011774,550,GRS SIGN CO LTD, 
East Lindsey District Council,http://statistics.data.gov.uk/id/local-authority/32UC,Service Development Manager,Maintenance,12/07/12,IJ00011774,30,GRS SIGN CO LTD, 
East Lindsey District Council,http://statistics.data.gov.uk/id/local-authority/32UC,Enforcement Team Leader,Furniture and Equipment,12/07/12,IJ00011774,23.85,GRS SIGN CO LTD, 
East Lindsey District Council,http://statistics.data.gov.uk/id/local-authority/32UC,TL Partnerships & Grants,Grants and Contributions to Outside Bodies- No Service Recei,12/07/12,IJ00011781,4000,ALFORD COMMUNITY CHURCH, 
East Lindsey District Council,http://statistics.data.gov.uk/id/local-authority/32UC,Hsg Advice & Homelessness TL,Bed and Breakfast Accommodation (Homelessness Service),12/07/12,IJ00011562,908.33,D BURGESS, 
East Lindsey District Council,http://statistics.data.gov.uk/id/local-authority/32UC,Policy & Project Manager,Other Miscellaneous Expenses,12/07/12,IJ00011559,510,EAST LINCS RURAL TRAINING, 
East Lindsey District Council,http://statistics.data.gov.uk/id/local-authority/32UC,Sports Development,Other Miscellaneous Expenses,12/07/12,IJ00011714,810,MC COACHING, 
East Lindsey District Council,http://statistics.data.gov.uk/id/local-authority/32UC,Capital WIP,Works to Buildings (main Contractor),12/07/12,IJ00011626,2202.91,Langwith Builders Ltd, 
East Lindsey District Council,http://statistics.data.gov.uk/id/local-authority/32UC,Capital WIP,Grants and Contributions to Outside Bodies- No Service Recei,12/07/12,IJ00011741,3041.6,COUNTRYWIDE PROPERTIES LINCS LTD, 
East Lindsey District Council,http://statistics.data.gov.uk/id/local-authority/32UC,Capital WIP,Grants and Contributions to Outside Bodies- No Service Recei,12/07/12,IJ00011741,1099.4,COUNTRYWIDE PROPERTIES LINCS LTD, 
East Lindsey District Council,http://statistics.data.gov.uk/id/local-authority/32UC,Technical Services Team Leader,Performers and Entertainers Fees,12/07/12,IJ00011707,795,MTM PRESENTATIONS LTD, 
East Lindsey District Council,http://statistics.data.gov.uk/id/local-authority/32UC,Technical Services Team Leader,Commercial Vehicle Lease,12/07/12,IJ00011816,308.65,MAY GURNEY FLEET & PASSENGER SERVICES LTD, 
East Lindsey District Council,http://statistics.data.gov.uk/id/local-authority/32UC,Waste Services Manager,Commercial Vehicle Lease,12/07/12,IJ00011816,4359.18,MAY GURNEY FLEET & PASSENGER SERVICES LTD, 
East Lindsey District Council,http://statistics.data.gov.uk/id/local-authority/32UC,Waste Services Manager,Commercial Vehicle Lease,12/07/12,IJ00011816,39737,MAY GURNEY FLEET & PASSENGER SERVICES LTD, 
East Lindsey District Council,http://statistics.data.gov.uk/id/local-authority/32UC,Waste Services Manager,Commercial Vehicle Lease,12/07/12,IJ00011816,39737,MAY GURNEY FLEET & PASSENGER SERVICES LTD, 
East Lindsey District Council,http://statistics.data.gov.uk/id/local-authority/32UC,Waste Services Manager,Commercial Vehicle Lease,12/07/12,IJ00011816,1455.63,MAY GURNEY FLEET & PASSENGER SERVICES LTD, 
East Lindsey District Council,http://statistics.data.gov.uk/id/local-authority/32UC,Waste Services Manager,Commercial Vehicle Lease,12/07/12,IJ00011816,237.53,MAY GURNEY FLEET & PASSENGER SERVICES LTD, 
East Lindsey District Council,http://statistics.data.gov.uk/id/local-authority/32UC,Theatre Manager,Commercial Vehicle Lease,12/07/12,IJ00011816,376.97,MAY GURNEY FLEET & PASSENGER SERVICES LTD, 
East Lindsey District Council,http://statistics.data.gov.uk/id/local-authority/32UC,Area Working,Commercial Vehicle Lease,12/07/12,IJ00011816,945,MAY GURNEY FLEET & PASSENGER SERVICES LTD, 
East Lindsey District Council,http://statistics.data.gov.uk/id/local-authority/32UC,Area Working,Commercial Vehicle Lease,12/07/12,IJ00011816,945,MAY GURNEY FLEET & PASSENGER SERVICES LTD, 
East Lindsey District Council,http://statistics.data.gov.uk/id/local-authority/32UC,Area Working,Commercial Vehicle Lease,12/07/12,IJ00011816,-415.96,MAY GURNEY FLEET & PASSENGER SERVICES LTD, 
East Lindsey District Council,http://statistics.data.gov.uk/id/local-authority/32UC,Area Working,Commercial Vehicle Lease,12/07/12,IJ00011816,-1700,MAY GURNEY FLEET & PASSENGER SERVICES LTD, 
East Lindsey District Council,http://statistics.data.gov.uk/id/local-authority/32UC,Area Working,Commercial Vehicle Lease,12/07/12,IJ00011816,-310.21,MAY GURNEY FLEET & PASSENGER SERVICES LTD, 
East Lindsey District Council,http://statistics.data.gov.uk/id/local-authority/32UC,Area Working,Commercial Vehicle Lease,12/07/12,IJ00011816,-436.93,MAY GURNEY FLEET & PASSENGER SERVICES LTD, 
East Lindsey District Council,http://statistics.data.gov.uk/id/local-authority/32UC,Area Working,Commercial Vehicle Lease,12/07/12,IJ00011816,-1700,MAY GURNEY FLEET & PASSENGER SERVICES LTD, 
East Lindsey District Council,http://statistics.data.gov.uk/id/local-authority/32UC,TL IT - Network & Comms,Computer Hardware Purchase,12/07/12,IJ00011550,1909.5,INFRASYS LTD, 
East Lindsey District Council,http://statistics.data.gov.uk/id/local-authority/32UC,Cultural & Related Services,Other Miscellaneous Expenses,12/07/12,IJ00011739,3915.5,At Events Services, 
East Lindsey District Council,http://statistics.data.gov.uk/id/local-authority/32UC,Capital WIP,Grants and Contributions to Outside Bodies- No Service Recei,12/07/12,IJ00010411,2250,BARCLAYS PARTNER FINANCE, 
East Lindsey District Council,http://statistics.data.gov.uk/id/local-authority/32UC,Sports Development,Furniture and Equipment,12/07/12,IJ00011713,701,SAILFLAGS, 
East Lindsey District Council,http://statistics.data.gov.uk/id/local-authority/32UC,Technical Services Team Leader,Performers and Entertainers Fees,12/07/12,IJ00011736,999,RETAIL REVIVAL LTD, 
East Lindsey District Council,http://statistics.data.gov.uk/id/local-authority/32UC,Sports Development,Other Miscellaneous Expenses,12/07/12,IJ00011735,3630,GRANDSTAND GB LTD, 
East Lindsey District Council,http://statistics.data.gov.uk/id/local-authority/32UC,Sports Development,Other Miscellaneous Expenses,12/07/12,IJ00011733,800,CHARLOTTE DUFFY, 
East Lindsey District Council,http://statistics.data.gov.uk/id/local-authority/32UC,Sports Development,Other Miscellaneous Expenses,12/07/12,IJ00011738,1400,UK FOOTVOLLEY ASSOCIATION, 
East Lindsey District Council,http://statistics.data.gov.uk/id/local-authority/32UC,TL Partnerships & Grants,Grants and Contributions to Outside Bodies- No Service Recei,12/07/12,IJ00011584,3138.8,"EASTVILLE, MIDVILLE & NEW LEAKE PLAYING FIELD COMMITTEE", 
East Lindsey District Council,http://statistics.data.gov.uk/id/local-authority/32UC,Theatre Manager,Performers and Entertainers Fees,12/07/12,IJ00011769,7000,CHAMBERS MANAGEMENT TOURING, 
East Lindsey District Council,http://statistics.data.gov.uk/id/local-authority/32UC,Policy & Project Manager,Grants and Contributions to Outside Bodies- No Service Recei,12/07/12,IJ00011809,1375.72,TENNYSON INSURANCE, 
East Lindsey District Council,http://statistics.data.gov.uk/id/local-authority/32UC,Service Development Manager,Buildings Maintenance - Programmed,17/07/12,IJ00011845,2216.22,FESTIVELITE (DISTRIBUTION) LIMITED, 
East Lindsey District Council,http://statistics.data.gov.uk/id/local-authority/32UC,Embassy Pool Manager,Other agencies,19/07/12,IJ00011856,4633.64,COMPETITION LINE (UK) LTD, 
East Lindsey District Council,http://statistics.data.gov.uk/id/local-authority/32UC,Business Development Manager,Professional & Contractors Fees,19/07/12,IJ00011998,2296.91,SID DENNIS & SONS LTD, 
East Lindsey District Council,http://statistics.data.gov.uk/id/local-authority/32UC,Business Development Manager,Other Miscellaneous Expenses,19/07/12,IJ00011833,678,NORTH KESTEVEN DISTRICT COUNCIL, 
East Lindsey District Council,http://statistics.data.gov.uk/id/local-authority/32UC,Policy & Project Manager,Grants and Contributions to Outside Bodies- No Service Recei,19/07/12,IJ00012020,3000,NORTH KESTEVEN DISTRICT COUNCIL, 
East Lindsey District Council,http://statistics.data.gov.uk/id/local-authority/32UC,Meridian Facility Manager,Materials and Consumables,19/07/12,IJ00011862,548.63,STOWLIN LTD, 
East Lindsey District Council,http://statistics.data.gov.uk/id/local-authority/32UC,Embassy Pool Manager,Materials and Consumables,19/07/12,IJ00011862,290,STOWLIN LTD, 
East Lindsey District Council,http://statistics.data.gov.uk/id/local-authority/32UC,Embassy Pool Manager,Cleaning Contract,19/07/12,IJ00011862,749.22,STOWLIN LTD, 
East Lindsey District Council,http://statistics.data.gov.uk/id/local-authority/32UC,Meridian Facility Manager,Materials and Consumables,19/07/12,IJ00011960,642.77,STOWLIN LTD, 
East Lindsey District Council,http://statistics.data.gov.uk/id/local-authority/32UC,Horncastle Pool Manager,Materials and Consumables,19/07/12,IJ00011960,419.6,STOWLIN LTD, 
East Lindsey District Council,http://statistics.data.gov.uk/id/local-authority/32UC,Service Development Manager,Materials and Consumables,19/07/12,IJ00012056,697,STOWLIN LTD, 
East Lindsey District Council,http://statistics.data.gov.uk/id/local-authority/32UC,Service Development Manager,Materials and Consumables,19/07/12,IJ00012057,720.07,STOWLIN LTD, 
East Lindsey District Council,http://statistics.data.gov.uk/id/local-authority/32UC,Service Development Manager,Materials and Consumables,19/07/12,IJ00012057,360.03,STOWLIN LTD, 
East Lindsey District Council,http://statistics.data.gov.uk/id/local-authority/32UC,Theatre Manager,Banking Charges,19/07/12,IJ00012098,573.37,BARCLAYS MERCHANT SERVICES, 
East Lindsey District Council,http://statistics.data.gov.uk/id/local-authority/32UC,TL Property,Electricity,19/07/12,IJ00012044,766.2,SKEGNESS GRAIN LTD, 
East Lindsey District Council,http://statistics.data.gov.uk/id/local-authority/32UC,Cultural & Related Services,Advertising - Events,19/07/12,IJ00011821,3346.6,F W CUPIT PRINTERS LIMITED, 
East Lindsey District Council,http://statistics.data.gov.uk/id/local-authority/32UC,Policy & Project Manager,Postages,19/07/12,IJ00012006,871,ROYAL MAIL, 
East Lindsey District Council,http://statistics.data.gov.uk/id/local-authority/32UC,Enforcement Team Leader,Professional & Contractors Fees,19/07/12,IJ00012026,2364,LINCOLNSHIRE COUNTY COUNCIL, 
East Lindsey District Council,http://statistics.data.gov.uk/id/local-authority/32UC,Technical Services Team Leader,Buildings Maintenance - Programmed,19/07/12,IJ00012038,3570,SEYMOUR & CASTLE LTD, 
East Lindsey District Council,http://statistics.data.gov.uk/id/local-authority/32UC,Capital WIP,Works to Buildings (Sub Contractors),19/07/12,IJ00012039,5944.54,SEYMOUR & CASTLE LTD, 
East Lindsey District Council,http://statistics.data.gov.uk/id/local-authority/32UC,Capital WIP,Works to Buildings (Sub Contractors),19/07/12,IJ00012040,1463.5,SEYMOUR & CASTLE LTD, 
East Lindsey District Council,http://statistics.data.gov.uk/id/local-authority/32UC,Capital WIP,Works to Buildings (Sub Contractors),19/07/12,IJ00012042,500,SEYMOUR & CASTLE LTD, 
East Lindsey District Council,http://statistics.data.gov.uk/id/local-authority/32UC,Capital WIP,Works to Buildings (Sub Contractors),19/07/12,IJ00012043,1000,SEYMOUR & CASTLE LTD, 
East Lindsey District Council,http://statistics.data.gov.uk/id/local-authority/32UC,Area Working,Fuel & Oil,19/07/12,IJ00011848,1330,WATSON PETROLEUM LTD, 
East Lindsey District Council,http://statistics.data.gov.uk/id/local-authority/32UC,Waste Services Manager,Fuel & Oil,19/07/12,IJ00011850,19744.68,WATSON PETROLEUM LTD, 
East Lindsey District Council,http://statistics.data.gov.uk/id/local-authority/32UC,Waste Services Manager,Fuel & Oil,19/07/12,IJ00011851,7676.6,WATSON PETROLEUM LTD, 
East Lindsey District Council,http://statistics.data.gov.uk/id/local-authority/32UC,Meridian Facility Manager,Gas,19/07/12,IJ00012050,6820.02,SOUTHERN ELECTRIC PLC, 
East Lindsey District Council,http://statistics.data.gov.uk/id/local-authority/32UC,Health Team Leader,Buildings Maintenance - Responsive,19/07/12,IJ00012086,642.42,INGOLDMELLS PARISH COUNCIL, 
East Lindsey District Council,http://statistics.data.gov.uk/id/local-authority/32UC,Council Tax TL,VAT Customs and Excise,19/07/12,IJ00011951,867.19,JACOBS, 
East Lindsey District Council,http://statistics.data.gov.uk/id/local-authority/32UC,Council Tax TL,VAT Customs and Excise,19/07/12,IJ00011952,703.23,JACOBS, 
East Lindsey District Council,http://statistics.data.gov.uk/id/local-authority/32UC,Business Development Manager,Gas,19/07/12,IJ00012102,95.5,ESPO, 
East Lindsey District Council,http://statistics.data.gov.uk/id/local-authority/32UC,TL Property,Gas,19/07/12,IJ00012102,1344.64,ESPO, 
East Lindsey District Council,http://statistics.data.gov.uk/id/local-authority/32UC,TL Property,Gas,19/07/12,IJ00012102,1901.18,ESPO, 
East Lindsey District Council,http://statistics.data.gov.uk/id/local-authority/32UC,TL Property,Gas,19/07/12,IJ00012102,321.12,ESPO, 
East Lindsey District Council,http://statistics.data.gov.uk/id/local-authority/32UC,TL Property,Gas,19/07/12,IJ00012102,216.38,ESPO, 
East Lindsey District Council,http://statistics.data.gov.uk/id/local-authority/32UC,Policy & Project Manager,Gas,19/07/12,IJ00012102,324.74,ESPO, 
East Lindsey District Council,http://statistics.data.gov.uk/id/local-authority/32UC,TL Property,Gas,19/07/12,IJ00012102,194.55,ESPO, 
East Lindsey District Council,http://statistics.data.gov.uk/id/local-authority/32UC,Embassy Pool Manager,Gas,19/07/12,IJ00012102,3072.42,ESPO, 
East Lindsey District Council,http://statistics.data.gov.uk/id/local-authority/32UC,Theatre Manager,Gas,19/07/12,IJ00012102,1626.32,ESPO, 
East Lindsey District Council,http://statistics.data.gov.uk/id/local-authority/32UC,Sports Centre Manager,Gas,19/07/12,IJ00012102,310.92,ESPO, 
East Lindsey District Council,http://statistics.data.gov.uk/id/local-authority/32UC,Meridian Facility Manager,Gas,19/07/12,IJ00012102,216.89,ESPO, 
East Lindsey District Council,http://statistics.data.gov.uk/id/local-authority/32UC,Policy & Project Manager,Gas,19/07/12,IJ00012102,299.41,ESPO, 
East Lindsey District Council,http://statistics.data.gov.uk/id/local-authority/32UC,Hsg Advice & Homelessness TL,Grants and Contributions to Outside Bodies- No Service Recei,19/07/12,IJ00011838,6697.98,NEW LINX HOUSING TRUST, 
East Lindsey District Council,http://statistics.data.gov.uk/id/local-authority/32UC,Housing Support TL,Rent and Lease Payments,19/07/12,IJ00012022,882.84,NEW LINX HOUSING TRUST, 
East Lindsey District Council,http://statistics.data.gov.uk/id/local-authority/32UC,Housing Support TL,Rent and Lease Payments,19/07/12,IJ00012023,823.08,NEW LINX HOUSING TRUST, 
East Lindsey District Council,http://statistics.data.gov.uk/id/local-authority/32UC,Housing Support TL,Rent and Lease Payments,19/07/12,IJ00012024,970.08,NEW LINX HOUSING TRUST, 
East Lindsey District Council,http://statistics.data.gov.uk/id/local-authority/32UC,Housing Support TL,Rent and Lease Payments,19/07/12,IJ00012025,966.84,NEW LINX HOUSING TRUST, 
East Lindsey District Council,http://statistics.data.gov.uk/id/local-authority/32UC,Meridian Facility Manager,Other Miscellaneous Expenses,19/07/12,IJ00011861,746.03,DEE BEE, 
East Lindsey District Council,http://statistics.data.gov.uk/id/local-authority/32UC,Collection Fund,Payment to NNDR Pool,19/07/12,IJ00012101,1489473,DEPARTMENT FOR COMMUNITIES AND LOCAL, 
East Lindsey District Council,http://statistics.data.gov.uk/id/local-authority/32UC,Corporate Accounting,Non Domestic Rates,19/07/12,IJ00012101,-585450,DEPARTMENT FOR COMMUNITIES AND LOCAL, 
East Lindsey District Council,http://statistics.data.gov.uk/id/local-authority/32UC,Theatre Manager,Performers and Entertainers Fees,19/07/12,IJ00012082,2398.48,ORIGINAL ENTERTAINMENT PROGRAMMING LTD, 
East Lindsey District Council,http://statistics.data.gov.uk/id/local-authority/32UC,Theatre Manager,Performers and Entertainers Fees,19/07/12,IJ00012082,-414,ORIGINAL ENTERTAINMENT PROGRAMMING LTD, 
East Lindsey District Council,http://statistics.data.gov.uk/id/local-authority/32UC,Corporate Accounting,Other Miscellaneous Expenses,19/07/12,IJ00012099,25320.11,GE CORPORATE PAYMENT SERVICES, 
East Lindsey District Council,http://statistics.data.gov.uk/id/local-authority/32UC,Corporate Accounting,Other Miscellaneous Expenses,19/07/12,IJ00012100,21872.49,GE CORPORATE PAYMENT SERVICES, 
East Lindsey District Council,http://statistics.data.gov.uk/id/local-authority/32UC,Waste Services Manager,Agency Staff,19/07/12,IJ00011999,4930.71,CLOSE INVOICE FINANCE LTD, 
East Lindsey District Council,http://statistics.data.gov.uk/id/local-authority/32UC,Business Development Officer,Advertising - Events,19/07/12,IJ00012088,1138.78,E-PRINTING, 
East Lindsey District Council,http://statistics.data.gov.uk/id/local-authority/32UC,Meridian Facility Manager,Purchase Of Goods For Resale,19/07/12,IJ00011941,380.28,SRS LEISURE, 
East Lindsey District Council,http://statistics.data.gov.uk/id/local-authority/32UC,Meridian Facility Manager,Purchase Of Goods For Resale,19/07/12,IJ00011941,334.98,SRS LEISURE, 
East Lindsey District Council,http://statistics.data.gov.uk/id/local-authority/32UC,Meridian Facility Manager,Purchase Of Goods For Resale,19/07/12,IJ00011947,326.48,SRS LEISURE, 
East Lindsey District Council,http://statistics.data.gov.uk/id/local-authority/32UC,Meridian Facility Manager,Purchase Of Goods For Resale,19/07/12,IJ00011947,1099.11,SRS LEISURE, 
East Lindsey District Council,http://statistics.data.gov.uk/id/local-authority/32UC,Capital WIP,Grants and Contributions to Outside Bodies- No Service Recei,19/07/12,IJ00011986,6594.54,ANDREW BLADES BUILDING SERVICES LTD, 
East Lindsey District Council,http://statistics.data.gov.uk/id/local-authority/32UC,Hsg Private Sector TL,Other Income,19/07/12,IJ00011986,-588.8,ANDREW BLADES BUILDING SERVICES LTD, 
East Lindsey District Council,http://statistics.data.gov.uk/id/local-authority/32UC,Capital WIP,Works to Buildings (main Contractor),19/07/12,IJ00011955,2096,PELL PLANT HIRE LTD, 
East Lindsey District Council,http://statistics.data.gov.uk/id/local-authority/32UC,Capital WIP,Works to Buildings (main Contractor),19/07/12,IJ00011956,646,PELL PLANT HIRE LTD, 
East Lindsey District Council,http://statistics.data.gov.uk/id/local-authority/32UC,Building Control,Other Miscellaneous Expenses,19/07/12,IJ00011820,1647.6,FOUNDATIONS & BUILDINGS LTD, 
East Lindsey District Council,http://statistics.data.gov.uk/id/local-authority/32UC,TL IT - Infrastructure,Computer Software Purchase,19/07/12,IJ00011826,16652.96,VTEQ LIMITED, 
East Lindsey District Council,http://statistics.data.gov.uk/id/local-authority/32UC,Meridian Facility Manager,Buildings Maintenance - Programmed,19/07/12,IJ00012067,1107,AEGIS SERVICE & AFTERCARE LTD, 
East Lindsey District Council,http://statistics.data.gov.uk/id/local-authority/32UC,Cultural & Related Services,Advertising - Events,19/07/12,IJ00012089,3330,LAVA, 
East Lindsey District Council,http://statistics.data.gov.uk/id/local-authority/32UC,Cultural & Related Services,Advertising - Events,19/07/12,IJ00012103,2851.8,LAVA, 
East Lindsey District Council,http://statistics.data.gov.uk/id/local-authority/32UC,Waste Services Manager,Agency Staff,19/07/12,IJ00011832,1373,LINCS MOTORHOMES LTD, 
East Lindsey District Council,http://statistics.data.gov.uk/id/local-authority/32UC,Service Development Manager,Agency Staff,19/07/12,IJ00012027,2758.93,THE WORKSHOP (WISBECH) LIMITED, 
East Lindsey District Council,http://statistics.data.gov.uk/id/local-authority/32UC,Service Development Manager,Agency Staff,19/07/12,IJ00011976,2826.53,THE WORKSHOP (WISBECH) LIMITED, 
East Lindsey District Council,http://statistics.data.gov.uk/id/local-authority/32UC,Service Development Manager,Agency Staff,19/07/12,IJ00011963,3633.5,THE WORKSHOP (WISBECH) LIMITED, 
East Lindsey District Council,http://statistics.data.gov.uk/id/local-authority/32UC,Cultural & Related Services,Other Miscellaneous Expenses,19/07/12,IJ00011961,88566,MAGNETIC EVENTS LTD, 
East Lindsey District Council,http://statistics.data.gov.uk/id/local-authority/32UC,Council Tax TL,Court Costs,19/07/12,IJ00011959,1140,CENTRAL FINANCE UNIT, 
East Lindsey District Council,http://statistics.data.gov.uk/id/local-authority/32UC,Debt Recovery TL,Court Costs,19/07/12,IJ00011959,105,CENTRAL FINANCE UNIT, 
East Lindsey District Council,http://statistics.data.gov.uk/id/local-authority/32UC,Business Development Manager,Buildings Maintenance - Responsive,19/07/12,IJ00011844,582.99,J TOMLINSON LTD, 
East Lindsey District Council,http://statistics.data.gov.uk/id/local-authority/32UC,Business Development Manager,Buildings Maintenance - Responsive,19/07/12,IJ00011844,276,J TOMLINSON LTD, 
East Lindsey District Council,http://statistics.data.gov.uk/id/local-authority/32UC,Business Development Manager,Buildings Maintenance - Responsive,19/07/12,IJ00011844,1002.37,J TOMLINSON LTD, 
East Lindsey District Council,http://statistics.data.gov.uk/id/local-authority/32UC,Business Development Manager,Buildings Maintenance - Responsive,19/07/12,IJ00011844,83.68,J TOMLINSON LTD, 
East Lindsey District Council,http://statistics.data.gov.uk/id/local-authority/32UC,TL Property,Buildings Maintenance - Responsive,19/07/12,IJ00011844,268.47,J TOMLINSON LTD, 
East Lindsey District Council,http://statistics.data.gov.uk/id/local-authority/32UC,TL Property,Buildings Maintenance - Responsive,19/07/12,IJ00011844,40.47,J TOMLINSON LTD, 
East Lindsey District Council,http://statistics.data.gov.uk/id/local-authority/32UC,TL Property,Buildings Maintenance - Responsive,19/07/12,IJ00011844,20,J TOMLINSON LTD, 
East Lindsey District Council,http://statistics.data.gov.uk/id/local-authority/32UC,TL Property,Buildings Maintenance - Responsive,19/07/12,IJ00011844,20.92,J TOMLINSON LTD, 
East Lindsey District Council,http://statistics.data.gov.uk/id/local-authority/32UC,TL Property,Buildings Maintenance - Responsive,19/07/12,IJ00011844,20.92,J TOMLINSON LTD, 
East Lindsey District Council,http://statistics.data.gov.uk/id/local-authority/32UC,TL Property,Buildings Maintenance - Responsive,19/07/12,IJ00011844,26.15,J TOMLINSON LTD, 
East Lindsey District Council,http://statistics.data.gov.uk/id/local-authority/32UC,TL Property,Buildings Maintenance - Responsive,19/07/12,IJ00011844,115,J TOMLINSON LTD, 
East Lindsey District Council,http://statistics.data.gov.uk/id/local-authority/32UC,TL Property,Buildings Maintenance - Responsive,19/07/12,IJ00011844,20,J TOMLINSON LTD, 
East Lindsey District Council,http://statistics.data.gov.uk/id/local-authority/32UC,Policy & Project Manager,Buildings Maintenance - Responsive,19/07/12,IJ00011844,227.47,J TOMLINSON LTD, 
East Lindsey District Council,http://statistics.data.gov.uk/id/local-authority/32UC,Policy & Project Manager,Buildings Maintenance - Responsive,19/07/12,IJ00011844,827.63,J TOMLINSON LTD, 
East Lindsey District Council,http://statistics.data.gov.uk/id/local-authority/32UC,Policy & Project Manager,Buildings Maintenance - Responsive,19/07/12,IJ00011844,765.18,J TOMLINSON LTD, 
East Lindsey District Council,http://statistics.data.gov.uk/id/local-authority/32UC,Policy & Project Manager,Buildings Maintenance - Responsive,19/07/12,IJ00011844,86.94,J TOMLINSON LTD, 
East Lindsey District Council,http://statistics.data.gov.uk/id/local-authority/32UC,Policy & Project Manager,Buildings Maintenance - Responsive,19/07/12,IJ00011844,62.76,J TOMLINSON LTD, 
East Lindsey District Council,http://statistics.data.gov.uk/id/local-authority/32UC,Policy & Project Manager,Buildings Maintenance - Responsive,19/07/12,IJ00011844,20,J TOMLINSON LTD, 
East Lindsey District Council,http://statistics.data.gov.uk/id/local-authority/32UC,Policy & Project Manager,Buildings Maintenance - Responsive,19/07/12,IJ00011844,197.07,J TOMLINSON LTD, 
East Lindsey District Council,http://statistics.data.gov.uk/id/local-authority/32UC,Policy & Project Manager,Buildings Maintenance - Responsive,19/07/12,IJ00011844,241.57,J TOMLINSON LTD, 
East Lindsey District Council,http://statistics.data.gov.uk/id/local-authority/32UC,Building Control,Buildings Maintenance - Responsive,19/07/12,IJ00011844,432.72,J TOMLINSON LTD, 
East Lindsey District Council,http://statistics.data.gov.uk/id/local-authority/32UC,Building Control,Buildings Maintenance - Responsive,19/07/12,IJ00011844,141.29,J TOMLINSON LTD, 
East Lindsey District Council,http://statistics.data.gov.uk/id/local-authority/32UC,Building Control,Buildings Maintenance - Responsive,19/07/12,IJ00011844,87.98,J TOMLINSON LTD, 
East Lindsey District Council,http://statistics.data.gov.uk/id/local-authority/32UC,Service Development Manager,Buildings Maintenance - Responsive,19/07/12,IJ00011844,31.38,J TOMLINSON LTD, 
East Lindsey District Council,http://statistics.data.gov.uk/id/local-authority/32UC,Service Development Manager,Buildings Maintenance - Responsive,19/07/12,IJ00011844,62.68,J TOMLINSON LTD, 
East Lindsey District Council,http://statistics.data.gov.uk/id/local-authority/32UC,Service Development Manager,Buildings Maintenance - Responsive,19/07/12,IJ00011844,295.03,J TOMLINSON LTD, 
East Lindsey District Council,http://statistics.data.gov.uk/id/local-authority/32UC,Service Development Manager,Buildings Maintenance - Responsive,19/07/12,IJ00011844,26.15,J TOMLINSON LTD, 
East Lindsey District Council,http://statistics.data.gov.uk/id/local-authority/32UC,Service Development Manager,Buildings Maintenance - Responsive,19/07/12,IJ00011844,369.53,J TOMLINSON LTD, 
East Lindsey District Council,http://statistics.data.gov.uk/id/local-authority/32UC,Service Development Manager,Buildings Maintenance - Responsive,19/07/12,IJ00011844,153.6,J TOMLINSON LTD, 
East Lindsey District Council,http://statistics.data.gov.uk/id/local-authority/32UC,Service Development Manager,Buildings Maintenance - Responsive,19/07/12,IJ00011844,875.92,J TOMLINSON LTD, 
East Lindsey District Council,http://statistics.data.gov.uk/id/local-authority/32UC,Service Development Manager,Buildings Maintenance - Responsive,19/07/12,IJ00011844,290.97,J TOMLINSON LTD, 
East Lindsey District Council,http://statistics.data.gov.uk/id/local-authority/32UC,Service Development Manager,Buildings Maintenance - Responsive,19/07/12,IJ00011844,36.61,J TOMLINSON LTD, 
East Lindsey District Council,http://statistics.data.gov.uk/id/local-authority/32UC,Service Development Manager,Buildings Maintenance - Responsive,19/07/12,IJ00011844,111.21,J TOMLINSON LTD, 
East Lindsey District Council,http://statistics.data.gov.uk/id/local-authority/32UC,Service Development Manager,Buildings Maintenance - Responsive,19/07/12,IJ00011844,52.3,J TOMLINSON LTD, 
East Lindsey District Council,http://statistics.data.gov.uk/id/local-authority/32UC,Service Development Manager,Buildings Maintenance - Responsive,19/07/12,IJ00011844,20.01,J TOMLINSON LTD, 
East Lindsey District Council,http://statistics.data.gov.uk/id/local-authority/32UC,Service Development Manager,Buildings Maintenance - Responsive,19/07/12,IJ00011844,26.15,J TOMLINSON LTD, 
East Lindsey District Council,http://statistics.data.gov.uk/id/local-authority/32UC,Service Development Manager,Buildings Maintenance - Responsive,19/07/12,IJ00011844,43.74,J TOMLINSON LTD, 
East Lindsey District Council,http://statistics.data.gov.uk/id/local-authority/32UC,Horncastle Pool Manager,Buildings Maintenance - Responsive,19/07/12,IJ00011844,308.16,J TOMLINSON LTD, 
East Lindsey District Council,http://statistics.data.gov.uk/id/local-authority/32UC,Horncastle Pool Manager,Buildings Maintenance - Responsive,19/07/12,IJ00011844,105.66,J TOMLINSON LTD, 
East Lindsey District Council,http://statistics.data.gov.uk/id/local-authority/32UC,Embassy Pool Manager,Buildings Maintenance - Responsive,19/07/12,IJ00011844,51.45,J TOMLINSON LTD, 
East Lindsey District Council,http://statistics.data.gov.uk/id/local-authority/32UC,Embassy Pool Manager,Buildings Maintenance - Responsive,19/07/12,IJ00011844,162.13,J TOMLINSON LTD, 
East Lindsey District Council,http://statistics.data.gov.uk/id/local-authority/32UC,Embassy Pool Manager,Buildings Maintenance - Responsive,19/07/12,IJ00011844,118.59,J TOMLINSON LTD, 
East Lindsey District Council,http://statistics.data.gov.uk/id/local-authority/32UC,Embassy Pool Manager,Buildings Maintenance - Responsive,19/07/12,IJ00011844,155.05,J TOMLINSON LTD, 
East Lindsey District Council,http://statistics.data.gov.uk/id/local-authority/32UC,Embassy Pool Manager,Buildings Maintenance - Responsive,19/07/12,IJ00011844,4522.32,J TOMLINSON LTD, 
East Lindsey District Council,http://statistics.data.gov.uk/id/local-authority/32UC,Meridian Facility Manager,Buildings Maintenance - Responsive,19/07/12,IJ00011844,152.39,J TOMLINSON LTD, 
East Lindsey District Council,http://statistics.data.gov.uk/id/local-authority/32UC,Meridian Facility Manager,Buildings Maintenance - Responsive,19/07/12,IJ00011844,36.61,J TOMLINSON LTD, 
East Lindsey District Council,http://statistics.data.gov.uk/id/local-authority/32UC,Sports Centre Manager,Buildings Maintenance - Responsive,19/07/12,IJ00011844,53.42,J TOMLINSON LTD, 
East Lindsey District Council,http://statistics.data.gov.uk/id/local-authority/32UC,Meridian Facility Manager,Buildings Maintenance - Responsive,19/07/12,IJ00011844,241.75,J TOMLINSON LTD, 
East Lindsey District Council,http://statistics.data.gov.uk/id/local-authority/32UC,Enforcement Team Leader,Buildings Maintenance - Responsive,19/07/12,IJ00011844,203.01,J TOMLINSON LTD, 
East Lindsey District Council,http://statistics.data.gov.uk/id/local-authority/32UC,Service Development Manager,Buildings Maintenance - Responsive,19/07/12,IJ00011844,809.76,J TOMLINSON LTD, 
East Lindsey District Council,http://statistics.data.gov.uk/id/local-authority/32UC,Service Development Manager,Buildings Maintenance - Responsive,19/07/12,IJ00011844,430.49,J TOMLINSON LTD, 
East Lindsey District Council,http://statistics.data.gov.uk/id/local-authority/32UC,Service Development Manager,Buildings Maintenance - Responsive,19/07/12,IJ00011844,123.05,J TOMLINSON LTD, 
East Lindsey District Council,http://statistics.data.gov.uk/id/local-authority/32UC,Service Development Manager,Buildings Maintenance - Responsive,19/07/12,IJ00011844,78.45,J TOMLINSON LTD, 
East Lindsey District Council,http://statistics.data.gov.uk/id/local-authority/32UC,Technical Services Team Leader,Buildings Maintenance - Programmed,19/07/12,IJ00011844,2604.54,J TOMLINSON LTD, 
East Lindsey District Council,http://statistics.data.gov.uk/id/local-authority/32UC,Service Development Manager,Buildings Maintenance - Responsive,19/07/12,IJ00011844,20.92,J TOMLINSON LTD, 
East Lindsey District Council,http://statistics.data.gov.uk/id/local-authority/32UC,Service Development Manager,Buildings Maintenance - Responsive,19/07/12,IJ00011844,138.95,J TOMLINSON LTD, 
East Lindsey District Council,http://statistics.data.gov.uk/id/local-authority/32UC,Service Development Manager,Materials and Consumables,19/07/12,IJ00011844,41.84,J TOMLINSON LTD, 
East Lindsey District Council,http://statistics.data.gov.uk/id/local-authority/32UC,Service Development Manager,Materials and Consumables,19/07/12,IJ00011844,53.72,J TOMLINSON LTD, 
East Lindsey District Council,http://statistics.data.gov.uk/id/local-authority/32UC,TL Property,Buildings Maintenance - Responsive,19/07/12,IJ00011844,60.38,J TOMLINSON LTD, 
East Lindsey District Council,http://statistics.data.gov.uk/id/local-authority/32UC,TL Property,Buildings Maintenance - Responsive,19/07/12,IJ00011844,172.89,J TOMLINSON LTD, 
East Lindsey District Council,http://statistics.data.gov.uk/id/local-authority/32UC,Service Development Manager,Buildings Maintenance - Responsive,19/07/12,IJ00011844,20,J TOMLINSON LTD, 
East Lindsey District Council,http://statistics.data.gov.uk/id/local-authority/32UC,Service Development Manager,Buildings Maintenance - Responsive,19/07/12,IJ00011844,63.53,J TOMLINSON LTD, 
East Lindsey District Council,http://statistics.data.gov.uk/id/local-authority/32UC,Service Development Manager,Buildings Maintenance - Responsive,19/07/12,IJ00011844,42.85,J TOMLINSON LTD, 
East Lindsey District Council,http://statistics.data.gov.uk/id/local-authority/32UC,Service Development Manager,Buildings Maintenance - Responsive,19/07/12,IJ00011844,55.66,J TOMLINSON LTD, 
East Lindsey District Council,http://statistics.data.gov.uk/id/local-authority/32UC,Service Development Manager,Buildings Maintenance - Responsive,19/07/12,IJ00011844,160.83,J TOMLINSON LTD, 
East Lindsey District Council,http://statistics.data.gov.uk/id/local-authority/32UC,Service Development Manager,Buildings Maintenance - Responsive,19/07/12,IJ00011844,20.92,J TOMLINSON LTD, 
East Lindsey District Council,http://statistics.data.gov.uk/id/local-authority/32UC,Service Development Manager,Buildings Maintenance - Responsive,19/07/12,IJ00011844,518.79,J TOMLINSON LTD, 
East Lindsey District Council,http://statistics.data.gov.uk/id/local-authority/32UC,Service Development Manager,Buildings Maintenance - Responsive,19/07/12,IJ00011844,47.07,J TOMLINSON LTD, 
East Lindsey District Council,http://statistics.data.gov.uk/id/local-authority/32UC,Service Development Manager,Buildings Maintenance - Responsive,19/07/12,IJ00011844,326.96,J TOMLINSON LTD, 
East Lindsey District Council,http://statistics.data.gov.uk/id/local-authority/32UC,Service Development Manager,Buildings Maintenance - Responsive,19/07/12,IJ00011844,310.79,J TOMLINSON LTD, 
East Lindsey District Council,http://statistics.data.gov.uk/id/local-authority/32UC,Service Development Manager,Buildings Maintenance - Responsive,19/07/12,IJ00011844,86.33,J TOMLINSON LTD, 
East Lindsey District Council,http://statistics.data.gov.uk/id/local-authority/32UC,Service Development Manager,Buildings Maintenance - Responsive,19/07/12,IJ00011844,132.92,J TOMLINSON LTD, 
East Lindsey District Council,http://statistics.data.gov.uk/id/local-authority/32UC,Service Development Manager,Buildings Maintenance - Responsive,19/07/12,IJ00011844,264.86,J TOMLINSON LTD, 
East Lindsey District Council,http://statistics.data.gov.uk/id/local-authority/32UC,Service Development Manager,Buildings Maintenance - Responsive,19/07/12,IJ00011844,43.97,J TOMLINSON LTD, 
East Lindsey District Council,http://statistics.data.gov.uk/id/local-authority/32UC,Policy & Project Manager,Furniture and Equipment,19/07/12,IJ00011844,156.02,J TOMLINSON LTD, 
East Lindsey District Council,http://statistics.data.gov.uk/id/local-authority/32UC,TL Property,Buildings Maintenance - Responsive,19/07/12,IJ00011844,226.59,J TOMLINSON LTD, 
East Lindsey District Council,http://statistics.data.gov.uk/id/local-authority/32UC,Theatre Manager,Buildings Maintenance - Responsive,19/07/12,IJ00011844,222.15,J TOMLINSON LTD, 
East Lindsey District Council,http://statistics.data.gov.uk/id/local-authority/32UC,Service Development Manager,Buildings Maintenance - Responsive,19/07/12,IJ00011844,41.84,J TOMLINSON LTD, 
East Lindsey District Council,http://statistics.data.gov.uk/id/local-authority/32UC,TL Property,Buildings Maintenance - Responsive,19/07/12,IJ00011844,163.46,J TOMLINSON LTD, 
East Lindsey District Council,http://statistics.data.gov.uk/id/local-authority/32UC,Service Development Manager,Buildings Maintenance - Responsive,19/07/12,IJ00011844,1342.46,J TOMLINSON LTD, 
East Lindsey District Council,http://statistics.data.gov.uk/id/local-authority/32UC,Service Development Manager,Buildings Maintenance - Responsive,19/07/12,IJ00011844,276.65,J TOMLINSON LTD, 
East Lindsey District Council,http://statistics.data.gov.uk/id/local-authority/32UC,TL Property,Buildings Maintenance - Responsive,19/07/12,IJ00011844,31.38,J TOMLINSON LTD, 
East Lindsey District Council,http://statistics.data.gov.uk/id/local-authority/32UC,TL Property,Buildings Maintenance - Responsive,19/07/12,IJ00011844,212.75,J TOMLINSON LTD, 
East Lindsey District Council,http://statistics.data.gov.uk/id/local-authority/32UC,TL Property,Buildings Maintenance - Responsive,19/07/12,IJ00011844,3670.56,J TOMLINSON LTD, 
East Lindsey District Council,http://statistics.data.gov.uk/id/local-authority/32UC,TL Property,Buildings Maintenance - Responsive,19/07/12,IJ00011844,41.84,J TOMLINSON LTD, 
East Lindsey District Council,http://statistics.data.gov.uk/id/local-authority/32UC,TL Property,Buildings Maintenance - Responsive,19/07/12,IJ00011844,20,J TOMLINSON LTD, 
East Lindsey District Council,http://statistics.data.gov.uk/id/local-authority/32UC,Enforcement Team Leader,Buildings Maintenance - Responsive,19/07/12,IJ00011844,138.98,J TOMLINSON LTD, 
East Lindsey District Council,http://statistics.data.gov.uk/id/local-authority/32UC,Enforcement Team Leader,Buildings Maintenance - Responsive,19/07/12,IJ00011844,560.55,J TOMLINSON LTD, 
East Lindsey District Council,http://statistics.data.gov.uk/id/local-authority/32UC,TL Property,Buildings Maintenance - Responsive,19/07/12,IJ00011844,26.15,J TOMLINSON LTD, 
East Lindsey District Council,http://statistics.data.gov.uk/id/local-authority/32UC,TL Property,Buildings Maintenance - Responsive,19/07/12,IJ00011844,48.98,J TOMLINSON LTD, 
East Lindsey District Council,http://statistics.data.gov.uk/id/local-authority/32UC,Enforcement Team Leader,Buildings Maintenance - Responsive,19/07/12,IJ00011844,1140.73,J TOMLINSON LTD, 
East Lindsey District Council,http://statistics.data.gov.uk/id/local-authority/32UC,Service Development Manager,Buildings Maintenance - Responsive,19/07/12,IJ00011844,62.76,J TOMLINSON LTD, 
East Lindsey District Council,http://statistics.data.gov.uk/id/local-authority/32UC,Service Development Manager,Buildings Maintenance - Responsive,19/07/12,IJ00011844,6799.02,J TOMLINSON LTD, 
East Lindsey District Council,http://statistics.data.gov.uk/id/local-authority/32UC,Theatre Manager,Buildings Maintenance - Responsive,19/07/12,IJ00011844,148.73,J TOMLINSON LTD, 
East Lindsey District Council,http://statistics.data.gov.uk/id/local-authority/32UC,Theatre Manager,Buildings Maintenance - Responsive,19/07/12,IJ00011844,138.8,J TOMLINSON LTD, 
East Lindsey District Council,http://statistics.data.gov.uk/id/local-authority/32UC,Theatre Manager,Buildings Maintenance - Responsive,19/07/12,IJ00011844,62.76,J TOMLINSON LTD, 
East Lindsey District Council,http://statistics.data.gov.uk/id/local-authority/32UC,Service Development Manager,Buildings Maintenance - Responsive,19/07/12,IJ00011844,47.07,J TOMLINSON LTD, 
East Lindsey District Council,http://statistics.data.gov.uk/id/local-authority/32UC,Service Development Manager,Buildings Maintenance - Responsive,19/07/12,IJ00011844,1181.89,J TOMLINSON LTD, 
East Lindsey District Council,http://statistics.data.gov.uk/id/local-authority/32UC,Technical Services Team Leader,Buildings Maintenance - Responsive,19/07/12,IJ00011844,192,J TOMLINSON LTD, 
East Lindsey District Council,http://statistics.data.gov.uk/id/local-authority/32UC,Technical Services Team Leader,Buildings Maintenance - Responsive,19/07/12,IJ00011844,1265,J TOMLINSON LTD, 
East Lindsey District Council,http://statistics.data.gov.uk/id/local-authority/32UC,Service Development Manager,Buildings Maintenance - Responsive,19/07/12,IJ00011844,79.68,J TOMLINSON LTD, 
East Lindsey District Council,http://statistics.data.gov.uk/id/local-authority/32UC,Theatre Manager,Buildings Maintenance - Responsive,19/07/12,IJ00011844,36.61,J TOMLINSON LTD, 
East Lindsey District Council,http://statistics.data.gov.uk/id/local-authority/32UC,Theatre Manager,Buildings Maintenance - Responsive,19/07/12,IJ00011844,101.93,J TOMLINSON LTD, 
East Lindsey District Council,http://statistics.data.gov.uk/id/local-authority/32UC,Service Development Manager,Buildings Maintenance - Responsive,19/07/12,IJ00011844,239.02,J TOMLINSON LTD, 
East Lindsey District Council,http://statistics.data.gov.uk/id/local-authority/32UC,Service Development Manager,Buildings Maintenance - Responsive,19/07/12,IJ00011844,472.89,J TOMLINSON LTD, 
East Lindsey District Council,http://statistics.data.gov.uk/id/local-authority/32UC,Service Development Manager,Buildings Maintenance - Responsive,19/07/12,IJ00011844,74.83,J TOMLINSON LTD, 
East Lindsey District Council,http://statistics.data.gov.uk/id/local-authority/32UC,TL Property,Buildings Maintenance - Responsive,19/07/12,IJ00011844,267.8,J TOMLINSON LTD, 
East Lindsey District Council,http://statistics.data.gov.uk/id/local-authority/32UC,TL Property,Buildings Maintenance - Responsive,19/07/12,IJ00011844,1929.72,J TOMLINSON LTD, 
East Lindsey District Council,http://statistics.data.gov.uk/id/local-authority/32UC,Service Development Manager,Buildings Maintenance - Responsive,19/07/12,IJ00011844,8662.47,J TOMLINSON LTD, 
East Lindsey District Council,http://statistics.data.gov.uk/id/local-authority/32UC,Enforcement Team Leader,Buildings Maintenance - Responsive,19/07/12,IJ00011844,26.15,J TOMLINSON LTD, 
East Lindsey District Council,http://statistics.data.gov.uk/id/local-authority/32UC,Enforcement Team Leader,Buildings Maintenance - Responsive,19/07/12,IJ00011844,66.2,J TOMLINSON LTD, 
East Lindsey District Council,http://statistics.data.gov.uk/id/local-authority/32UC,Service Development Manager,Buildings Maintenance - Responsive,19/07/12,IJ00011844,947.1,J TOMLINSON LTD, 
East Lindsey District Council,http://statistics.data.gov.uk/id/local-authority/32UC,Service Development Manager,Buildings Maintenance - Responsive,19/07/12,IJ00011844,202.8,J TOMLINSON LTD, 
East Lindsey District Council,http://statistics.data.gov.uk/id/local-authority/32UC,Service Development Manager,Other Miscellaneous Expenses,19/07/12,IJ00011844,112.65,J TOMLINSON LTD, 
East Lindsey District Council,http://statistics.data.gov.uk/id/local-authority/32UC,TL Property,Buildings Maintenance - Responsive,19/07/12,IJ00011844,160.9,J TOMLINSON LTD, 
East Lindsey District Council,http://statistics.data.gov.uk/id/local-authority/32UC,Embassy Pool Manager,Buildings Maintenance - Responsive,19/07/12,IJ00011844,755.21,J TOMLINSON LTD, 
East Lindsey District Council,http://statistics.data.gov.uk/id/local-authority/32UC,TL IT - Infrastructure,Materials and Consumables,19/07/12,IJ00011844,66.55,J TOMLINSON LTD, 
East Lindsey District Council,http://statistics.data.gov.uk/id/local-authority/32UC,Embassy Pool Manager,Buildings Maintenance - Responsive,19/07/12,IJ00011844,202.12,J TOMLINSON LTD, 
East Lindsey District Council,http://statistics.data.gov.uk/id/local-authority/32UC,Embassy Pool Manager,Buildings Maintenance - Responsive,19/07/12,IJ00011844,31.38,J TOMLINSON LTD, 
East Lindsey District Council,http://statistics.data.gov.uk/id/local-authority/32UC,Enforcement Team Leader,Buildings Maintenance - Responsive,19/07/12,IJ00011844,20.92,J TOMLINSON LTD, 
East Lindsey District Council,http://statistics.data.gov.uk/id/local-authority/32UC,TL Property,Buildings Maintenance - Responsive,19/07/12,IJ00011844,408.25,J TOMLINSON LTD, 
East Lindsey District Council,http://statistics.data.gov.uk/id/local-authority/32UC,TL Property,Buildings Maintenance - Responsive,19/07/12,IJ00011844,192.73,J TOMLINSON LTD, 
East Lindsey District Council,http://statistics.data.gov.uk/id/local-authority/32UC,TL Property,Buildings Maintenance - Responsive,19/07/12,IJ00011844,174.5,J TOMLINSON LTD, 
East Lindsey District Council,http://statistics.data.gov.uk/id/local-authority/32UC,TL Property,Buildings Maintenance - Responsive,19/07/12,IJ00011844,48.07,J TOMLINSON LTD, 
East Lindsey District Council,http://statistics.data.gov.uk/id/local-authority/32UC,TL Property,Buildings Maintenance - Responsive,19/07/12,IJ00011844,507.01,J TOMLINSON LTD, 
East Lindsey District Council,http://statistics.data.gov.uk/id/local-authority/32UC,Service Development Manager,Buildings Maintenance - Responsive,19/07/12,IJ00011844,33.89,J TOMLINSON LTD, 
East Lindsey District Council,http://statistics.data.gov.uk/id/local-authority/32UC,Service Development Manager,Buildings Maintenance - Responsive,19/07/12,IJ00011844,154.88,J TOMLINSON LTD, 
East Lindsey District Council,http://statistics.data.gov.uk/id/local-authority/32UC,Enforcement Team Leader,Buildings Maintenance - Responsive,19/07/12,IJ00011844,440.02,J TOMLINSON LTD, 
East Lindsey District Council,http://statistics.data.gov.uk/id/local-authority/32UC,Enforcement Team Leader,Buildings Maintenance - Responsive,19/07/12,IJ00011844,931.61,J TOMLINSON LTD, 
East Lindsey District Council,http://statistics.data.gov.uk/id/local-authority/32UC,Enforcement Team Leader,Buildings Maintenance - Responsive,19/07/12,IJ00011844,20.92,J TOMLINSON LTD, 
East Lindsey District Council,http://statistics.data.gov.uk/id/local-authority/32UC,Service Development Manager,Buildings Maintenance - Responsive,19/07/12,IJ00011844,1185.11,J TOMLINSON LTD, 
East Lindsey District Council,http://statistics.data.gov.uk/id/local-authority/32UC,Enforcement Team Leader,Furniture and Equipment,19/07/12,IJ00011844,433.97,J TOMLINSON LTD, 
East Lindsey District Council,http://statistics.data.gov.uk/id/local-authority/32UC,Enforcement Team Leader,Buildings Maintenance - Responsive,19/07/12,IJ00011844,732.81,J TOMLINSON LTD, 
East Lindsey District Council,http://statistics.data.gov.uk/id/local-authority/32UC,SM Economic Regen & Property,Buildings Maintenance - Responsive,19/07/12,IJ00011844,350.07,J TOMLINSON LTD, 
East Lindsey District Council,http://statistics.data.gov.uk/id/local-authority/32UC,Commercial Team Leader,Furniture and Equipment,19/07/12,IJ00011844,364.65,J TOMLINSON LTD, 
East Lindsey District Council,http://statistics.data.gov.uk/id/local-authority/32UC,Enforcement Team Leader,Buildings Maintenance - Responsive,19/07/12,IJ00011844,167.39,J TOMLINSON LTD, 
East Lindsey District Council,http://statistics.data.gov.uk/id/local-authority/32UC,TL Property,Buildings Maintenance - Responsive,19/07/12,IJ00011844,1551.73,J TOMLINSON LTD, 
East Lindsey District Council,http://statistics.data.gov.uk/id/local-authority/32UC,Horncastle Pool Manager,Buildings Maintenance - Responsive,19/07/12,IJ00011844,477.9,J TOMLINSON LTD, 
East Lindsey District Council,http://statistics.data.gov.uk/id/local-authority/32UC,Theatre Manager,Buildings Maintenance - Responsive,19/07/12,IJ00011844,184,J TOMLINSON LTD, 
East Lindsey District Council,http://statistics.data.gov.uk/id/local-authority/32UC,Enforcement Team Leader,Buildings Maintenance - Responsive,19/07/12,IJ00011844,463.21,J TOMLINSON LTD, 
East Lindsey District Council,http://statistics.data.gov.uk/id/local-authority/32UC,Technical Services Team Leader,Buildings Maintenance - Responsive,19/07/12,IJ00011844,317.9,J TOMLINSON LTD, 
East Lindsey District Council,http://statistics.data.gov.uk/id/local-authority/32UC,TL Property,Buildings Maintenance - Responsive,19/07/12,IJ00011844,92,J TOMLINSON LTD, 
East Lindsey District Council,http://statistics.data.gov.uk/id/local-authority/32UC,Service Development Manager,Buildings Maintenance - Responsive,19/07/12,IJ00011844,94.95,J TOMLINSON LTD, 
East Lindsey District Council,http://statistics.data.gov.uk/id/local-authority/32UC,Meridian Facility Manager,Buildings Maintenance - Responsive,19/07/12,IJ00011844,201.37,J TOMLINSON LTD, 
East Lindsey District Council,http://statistics.data.gov.uk/id/local-authority/32UC,Enforcement Team Leader,Buildings Maintenance - Responsive,19/07/12,IJ00011844,543.48,J TOMLINSON LTD, 
East Lindsey District Council,http://statistics.data.gov.uk/id/local-authority/32UC,Service Development Manager,Buildings Maintenance - Responsive,19/07/12,IJ00011844,174.77,J TOMLINSON LTD, 
East Lindsey District Council,http://statistics.data.gov.uk/id/local-authority/32UC,Corporate Accounting,Buildings Maintenance - Responsive,19/07/12,IJ00011844,132.54,J TOMLINSON LTD, 
East Lindsey District Council,http://statistics.data.gov.uk/id/local-authority/32UC,Communications Manager,Advertising - Legal And Public,19/07/12,IJ00011829,3527.15,THE NATIONAL LEAFLET COMPANY, 
East Lindsey District Council,http://statistics.data.gov.uk/id/local-authority/32UC,Communications Manager,Advertising - Legal And Public,19/07/12,IJ00011857,1660.93,THE NATIONAL LEAFLET COMPANY, 
East Lindsey District Council,http://statistics.data.gov.uk/id/local-authority/32UC,Service Development Manager,Water and Sewerage Charges,19/07/12,IJ00012045,641.44,ANGLIAN WATER, 
East Lindsey District Council,http://statistics.data.gov.uk/id/local-authority/32UC,Theatre Manager,Performers and Entertainers Fees,19/07/12,IJ00011967,12500,BRIAN SHAW CONCERTS, 
East Lindsey District Council,http://statistics.data.gov.uk/id/local-authority/32UC,Technical Services Team Leader,Buildings Maintenance - Programmed,19/07/12,IJ00012071,1200,SKIPTON BUSINESS FINANCE LTD, 
East Lindsey District Council,http://statistics.data.gov.uk/id/local-authority/32UC,Sports Centre Manager,Telephones,19/07/12,IJ00011932,42.9,DAISY COMMUNICATIONS LTD, 
East Lindsey District Council,http://statistics.data.gov.uk/id/local-authority/32UC,Service Development Manager,Telephones,19/07/12,IJ00011932,10.99,DAISY COMMUNICATIONS LTD, 
East Lindsey District Council,http://statistics.data.gov.uk/id/local-authority/32UC,Enforcement Team Leader,Other agencies,19/07/12,IJ00011932,22.34,DAISY COMMUNICATIONS LTD, 
East Lindsey District Council,http://statistics.data.gov.uk/id/local-authority/32UC,Customer Services Manager,Telephones,19/07/12,IJ00011932,79.46,DAISY COMMUNICATIONS LTD, 
East Lindsey District Council,http://statistics.data.gov.uk/id/local-authority/32UC,Policy & Project Manager,Telephones,19/07/12,IJ00011932,355.72,DAISY COMMUNICATIONS LTD, 
East Lindsey District Council,http://statistics.data.gov.uk/id/local-authority/32UC,Hsg Private Sector TL,Telephones,19/07/12,IJ00011932,12.2,DAISY COMMUNICATIONS LTD, 
East Lindsey District Council,http://statistics.data.gov.uk/id/local-authority/32UC,Housing Support TL,Telephones,19/07/12,IJ00011932,11.3,DAISY COMMUNICATIONS LTD, 
East Lindsey District Council,http://statistics.data.gov.uk/id/local-authority/32UC,Meridian Facility Manager,Telephones,19/07/12,IJ00011932,167.83,DAISY COMMUNICATIONS LTD, 
East Lindsey District Council,http://statistics.data.gov.uk/id/local-authority/32UC,Embassy Pool Manager,Telephones,19/07/12,IJ00011932,44.87,DAISY COMMUNICATIONS LTD, 
East Lindsey District Council,http://statistics.data.gov.uk/id/local-authority/32UC,Meridian Facility Manager,Telephones,19/07/12,IJ00011932,71.31,DAISY COMMUNICATIONS LTD, 
East Lindsey District Council,http://statistics.data.gov.uk/id/local-authority/32UC,Policy & Project Manager,Telephones,19/07/12,IJ00011932,486.77,DAISY COMMUNICATIONS LTD, 
East Lindsey District Council,http://statistics.data.gov.uk/id/local-authority/32UC,BM Sports Facilities,Telephones,19/07/12,IJ00011932,23.19,DAISY COMMUNICATIONS LTD, 
East Lindsey District Council,http://statistics.data.gov.uk/id/local-authority/32UC,Theatre Manager,Telephones,19/07/12,IJ00011932,58.06,DAISY COMMUNICATIONS LTD, 
East Lindsey District Council,http://statistics.data.gov.uk/id/local-authority/32UC,Business Development Manager,Telephones,19/07/12,IJ00011932,45.82,DAISY COMMUNICATIONS LTD, 
East Lindsey District Council,http://statistics.data.gov.uk/id/local-authority/32UC,Building Control Partnership,Telephones,19/07/12,IJ00011932,62.89,DAISY COMMUNICATIONS LTD, 
East Lindsey District Council,http://statistics.data.gov.uk/id/local-authority/32UC,TL IT - Network & Comms,Telephones,19/07/12,IJ00011932,101.79,DAISY COMMUNICATIONS LTD, 
East Lindsey District Council,http://statistics.data.gov.uk/id/local-authority/32UC,Policy & Project Manager,Telephones,19/07/12,IJ00011932,440.79,DAISY COMMUNICATIONS LTD, 
East Lindsey District Council,http://statistics.data.gov.uk/id/local-authority/32UC,Sports Centre Manager,Telephones,19/07/12,IJ00011932,39.34,DAISY COMMUNICATIONS LTD, 
East Lindsey District Council,http://statistics.data.gov.uk/id/local-authority/32UC,TL Property,Telephones,19/07/12,IJ00011932,10.99,DAISY COMMUNICATIONS LTD, 
East Lindsey District Council,http://statistics.data.gov.uk/id/local-authority/32UC,Hsg Private Sector TL,Telephones,19/07/12,IJ00011932,23.92,DAISY COMMUNICATIONS LTD, 
East Lindsey District Council,http://statistics.data.gov.uk/id/local-authority/32UC,Policy & Project Manager,Telephones,19/07/12,IJ00011932,24.4,DAISY COMMUNICATIONS LTD, 
East Lindsey District Council,http://statistics.data.gov.uk/id/local-authority/32UC,Technical Services Team Leader,Telephones,19/07/12,IJ00011932,11.04,DAISY COMMUNICATIONS LTD, 
East Lindsey District Council,http://statistics.data.gov.uk/id/local-authority/32UC,Strategic Director (SD),Telephones,19/07/12,IJ00011932,12.2,DAISY COMMUNICATIONS LTD, 
East Lindsey District Council,http://statistics.data.gov.uk/id/local-authority/32UC,Business Development Manager,Telephones,19/07/12,IJ00011932,12.2,DAISY COMMUNICATIONS LTD, 
East Lindsey District Council,http://statistics.data.gov.uk/id/local-authority/32UC,Commercial Team Leader,Telephones,19/07/12,IJ00011932,20.98,DAISY COMMUNICATIONS LTD, 
East Lindsey District Council,http://statistics.data.gov.uk/id/local-authority/32UC,TL Property,Telephones,19/07/12,IJ00011932,21.98,DAISY COMMUNICATIONS LTD, 
East Lindsey District Council,http://statistics.data.gov.uk/id/local-authority/32UC,TL Property,Telephones,19/07/12,IJ00011932,33.73,DAISY COMMUNICATIONS LTD, 
East Lindsey District Council,http://statistics.data.gov.uk/id/local-authority/32UC,TL Property,Telephones,19/07/12,IJ00011932,10.99,DAISY COMMUNICATIONS LTD, 
East Lindsey District Council,http://statistics.data.gov.uk/id/local-authority/32UC,TL Property,Telephones,19/07/12,IJ00011932,11.05,DAISY COMMUNICATIONS LTD, 
East Lindsey District Council,http://statistics.data.gov.uk/id/local-authority/32UC,TL Property,Telephones,19/07/12,IJ00011932,23.39,DAISY COMMUNICATIONS LTD, 
East Lindsey District Council,http://statistics.data.gov.uk/id/local-authority/32UC,TL Property,Telephones,19/07/12,IJ00011932,12.2,DAISY COMMUNICATIONS LTD, 
East Lindsey District Council,http://statistics.data.gov.uk/id/local-authority/32UC,TL Property,Telephones,19/07/12,IJ00011932,12.2,DAISY COMMUNICATIONS LTD, 
East Lindsey District Council,http://statistics.data.gov.uk/id/local-authority/32UC,TL Property,Telephones,19/07/12,IJ00011932,55.61,DAISY COMMUNICATIONS LTD, 
East Lindsey District Council,http://statistics.data.gov.uk/id/local-authority/32UC,Theatre Manager,Telephones,19/07/12,IJ00011932,-40.05,DAISY COMMUNICATIONS LTD, 
East Lindsey District Council,http://statistics.data.gov.uk/id/local-authority/32UC,SM Economic Regen & Property,Telephones,19/07/12,IJ00011932,11,DAISY COMMUNICATIONS LTD, 
East Lindsey District Council,http://statistics.data.gov.uk/id/local-authority/32UC,Horncastle Pool Manager,Telephones,19/07/12,IJ00011932,65.46,DAISY COMMUNICATIONS LTD, 
East Lindsey District Council,http://statistics.data.gov.uk/id/local-authority/32UC,Embassy Pool Manager,Telephones,19/07/12,IJ00011932,10.99,DAISY COMMUNICATIONS LTD, 
East Lindsey District Council,http://statistics.data.gov.uk/id/local-authority/32UC,Embassy Pool Manager,Telephones,19/07/12,IJ00011932,10.99,DAISY COMMUNICATIONS LTD, 
East Lindsey District Council,http://statistics.data.gov.uk/id/local-authority/32UC,Theatre Manager,Telephones,19/07/12,IJ00011932,11.45,DAISY COMMUNICATIONS LTD, 
East Lindsey District Council,http://statistics.data.gov.uk/id/local-authority/32UC,Service Development Manager,Telephones,19/07/12,IJ00011932,15.57,DAISY COMMUNICATIONS LTD, 
East Lindsey District Council,http://statistics.data.gov.uk/id/local-authority/32UC,Service Development Manager,Telephones,19/07/12,IJ00011932,12.2,DAISY COMMUNICATIONS LTD, 
East Lindsey District Council,http://statistics.data.gov.uk/id/local-authority/32UC,Service Development Manager,Telephones,19/07/12,IJ00011932,35.29,DAISY COMMUNICATIONS LTD, 
East Lindsey District Council,http://statistics.data.gov.uk/id/local-authority/32UC,Capital WIP,Telephones,19/07/12,IJ00011932,24.4,DAISY COMMUNICATIONS LTD, 
East Lindsey District Council,http://statistics.data.gov.uk/id/local-authority/32UC,Technical Services Team Leader,Telephones,19/07/12,IJ00011932,12.09,DAISY COMMUNICATIONS LTD, 
East Lindsey District Council,http://statistics.data.gov.uk/id/local-authority/32UC,Technical Services Team Leader,Other Communication Costs,19/07/12,IJ00011932,10.99,DAISY COMMUNICATIONS LTD, 
East Lindsey District Council,http://statistics.data.gov.uk/id/local-authority/32UC,Corporate Accounting,Telephones,19/07/12,IJ00011932,60.72,DAISY COMMUNICATIONS LTD, 
East Lindsey District Council,http://statistics.data.gov.uk/id/local-authority/32UC,TL IT - Network & Comms,Telephones,19/07/12,IJ00011932,34.18,DAISY COMMUNICATIONS LTD, 
East Lindsey District Council,http://statistics.data.gov.uk/id/local-authority/32UC,Area Working,Telephones,19/07/12,IJ00011932,12.2,DAISY COMMUNICATIONS LTD, 
East Lindsey District Council,http://statistics.data.gov.uk/id/local-authority/32UC,Waste Services Manager,Telephones,19/07/12,IJ00011932,10.99,DAISY COMMUNICATIONS LTD, 
East Lindsey District Council,http://statistics.data.gov.uk/id/local-authority/32UC,Capital WIP,Grants and Contributions to Outside Bodies- No Service Recei,19/07/12,IJ00011985,4750,S KIME ELECTRICAL LTD, 
East Lindsey District Council,http://statistics.data.gov.uk/id/local-authority/32UC,Theatre Manager,Furniture and Equipment,19/07/12,IJ00012072,4715.72,BLUE SUN TREE LTD, 
East Lindsey District Council,http://statistics.data.gov.uk/id/local-authority/32UC,Capital WIP,Works to Buildings (main Contractor),19/07/12,IJ00012076,15600,GUDRUM CLASSICS LIMITED, 
East Lindsey District Council,http://statistics.data.gov.uk/id/local-authority/32UC,Business Development Manager,Other Miscellaneous Expenses,19/07/12,IJ00011834,510.52,CARRIER DIRECT LIMITED, 
East Lindsey District Council,http://statistics.data.gov.uk/id/local-authority/32UC,Health Team Leader,Furniture and Equipment,19/07/12,IJ00012016,39996.84,TECHNOGYM UK LTD, 
East Lindsey District Council,http://statistics.data.gov.uk/id/local-authority/32UC,Democracy Manager,Postages,19/07/12,IJ00011836,11416.33,FCS LASER MAIL, 
East Lindsey District Council,http://statistics.data.gov.uk/id/local-authority/32UC,Enforcement Team Leader,Fuel & Oil,19/07/12,IJ00011827,369.07,THE RIGHT FUELCARD COMPANY LTD, 
East Lindsey District Council,http://statistics.data.gov.uk/id/local-authority/32UC,Sports Development,Fuel & Oil,19/07/12,IJ00011827,44.13,THE RIGHT FUELCARD COMPANY LTD, 
East Lindsey District Council,http://statistics.data.gov.uk/id/local-authority/32UC,Sports Development,Fuel & Oil,19/07/12,IJ00011827,268.44,THE RIGHT FUELCARD COMPANY LTD, 
East Lindsey District Council,http://statistics.data.gov.uk/id/local-authority/32UC,Enforcement Team Leader,Fuel & Oil,19/07/12,IJ00011827,263.63,THE RIGHT FUELCARD COMPANY LTD, 
East Lindsey District Council,http://statistics.data.gov.uk/id/local-authority/32UC,Hsg Advice & Homelessness TL,Fuel & Oil,19/07/12,IJ00011827,99.61,THE RIGHT FUELCARD COMPANY LTD, 
East Lindsey District Council,http://statistics.data.gov.uk/id/local-authority/32UC,Technical Services Team Leader,Fuel & Oil,19/07/12,IJ00011827,224.67,THE RIGHT FUELCARD COMPANY LTD, 
East Lindsey District Council,http://statistics.data.gov.uk/id/local-authority/32UC,Waste Services Manager,Fuel & Oil,19/07/12,IJ00011827,130.7,THE RIGHT FUELCARD COMPANY LTD, 
East Lindsey District Council,http://statistics.data.gov.uk/id/local-authority/32UC,Theatre Manager,Fuel & Oil,19/07/12,IJ00011827,106.9,THE RIGHT FUELCARD COMPANY LTD, 
East Lindsey District Council,http://statistics.data.gov.uk/id/local-authority/32UC,Improvement & Development Mngr,Fuel & Oil,19/07/12,IJ00011827,57.22,THE RIGHT FUELCARD COMPANY LTD, 
East Lindsey District Council,http://statistics.data.gov.uk/id/local-authority/32UC,Improvement & Development Mngr,Fuel & Oil,19/07/12,IJ00011827,281.66,THE RIGHT FUELCARD COMPANY LTD, 
East Lindsey District Council,http://statistics.data.gov.uk/id/local-authority/32UC,Improvement & Development Mngr,Fuel & Oil,19/07/12,IJ00011827,151.75,THE RIGHT FUELCARD COMPANY LTD, 
East Lindsey District Council,http://statistics.data.gov.uk/id/local-authority/32UC,Improvement & Development Mngr,Fuel & Oil,19/07/12,IJ00011827,349.53,THE RIGHT FUELCARD COMPANY LTD, 
East Lindsey District Council,http://statistics.data.gov.uk/id/local-authority/32UC,Improvement & Development Mngr,Fuel & Oil,19/07/12,IJ00011827,1444.31,THE RIGHT FUELCARD COMPANY LTD, 
East Lindsey District Council,http://statistics.data.gov.uk/id/local-authority/32UC,Improvement & Development Mngr,Fuel & Oil,19/07/12,IJ00011827,124.47,THE RIGHT FUELCARD COMPANY LTD, 
East Lindsey District Council,http://statistics.data.gov.uk/id/local-authority/32UC,Improvement & Development Mngr,Fuel & Oil,19/07/12,IJ00011827,900.77,THE RIGHT FUELCARD COMPANY LTD, 
East Lindsey District Council,http://statistics.data.gov.uk/id/local-authority/32UC,Improvement & Development Mngr,Fuel & Oil,19/07/12,IJ00011827,3196.39,THE RIGHT FUELCARD COMPANY LTD, 
East Lindsey District Council,http://statistics.data.gov.uk/id/local-authority/32UC,Improvement & Development Mngr,Fuel & Oil,19/07/12,IJ00011827,1478,THE RIGHT FUELCARD COMPANY LTD, 
East Lindsey District Council,http://statistics.data.gov.uk/id/local-authority/32UC,Improvement & Development Mngr,Fuel & Oil,19/07/12,IJ00011827,234.1,THE RIGHT FUELCARD COMPANY LTD, 
East Lindsey District Council,http://statistics.data.gov.uk/id/local-authority/32UC,Policy & Project Manager,Other Miscellaneous Expenses,19/07/12,IJ00011933,678.3,WELLS & SONS MARQUEES LTD, 
East Lindsey District Council,http://statistics.data.gov.uk/id/local-authority/32UC,Waste Services Manager,Furniture and Equipment,19/07/12,IJ00011863,5390,BLUE LINE TRAILERS, 
East Lindsey District Council,http://statistics.data.gov.uk/id/local-authority/32UC,Business Development Manager,Other Miscellaneous Expenses,19/07/12,IJ00011981,2600,STEVENS GREEN MEDIA, 
East Lindsey District Council,http://statistics.data.gov.uk/id/local-authority/32UC,Hsg Advice & Homelessness TL,Other Miscellaneous Expenses,19/07/12,IJ00011937,500,REDACTED PERSONAL INFORMATION,REDACT
East Lindsey District Council,http://statistics.data.gov.uk/id/local-authority/32UC,Democracy Manager,Grants and Contributions to Outside Bodies- No Service Recei,19/07/12,IJ00011990,750,MAREHAM LE FEN LUNCHEON CLUB, 
East Lindsey District Council,http://statistics.data.gov.uk/id/local-authority/32UC,Democracy Manager,Grants and Contributions to Outside Bodies- No Service Recei,19/07/12,IJ00011989,500,1ST BURGH CUBS AND SCOUTS, 
East Lindsey District Council,http://statistics.data.gov.uk/id/local-authority/32UC,Capital WIP,Grants and Contributions to Outside Bodies- No Service Recei,19/07/12,IJ00011984,5000,M D JENNINGS BUILDING AND ROOFING, 
East Lindsey District Council,http://statistics.data.gov.uk/id/local-authority/32UC,Business Development Manager,Other Miscellaneous Expenses,19/07/12,IJ00012084,600,STONEBOW MEDIA, 
East Lindsey District Council,http://statistics.data.gov.uk/id/local-authority/32UC,Technical Services Team Leader,Buildings Maintenance - Programmed,19/07/12,IJ00012070,2414.4,THE FESTIVE LIGHTING COMPANY LTD, 
East Lindsey District Council,http://statistics.data.gov.uk/id/local-authority/32UC,TL IT - Network & Comms,Telephones,26/07/12,IJ00012366,2233.5,BT PLC, 
East Lindsey District Council,http://statistics.data.gov.uk/id/local-authority/32UC,Waste Services Manager,Tyres,26/07/12,IJ00012199,774.24,B A BUSH & SON LIMITED, 
East Lindsey District Council,http://statistics.data.gov.uk/id/local-authority/32UC,Waste Services Manager,Tyres,26/07/12,IJ00012203,683.49,B A BUSH & SON LIMITED, 
East Lindsey District Council,http://statistics.data.gov.uk/id/local-authority/32UC,Service Development Manager,Commercial Vehicle Lease,26/07/12,IJ00012235,1950,CHANDLERS (FARM EQUIPMENT) LTD, 
East Lindsey District Council,http://statistics.data.gov.uk/id/local-authority/32UC,Service Development Manager,Commercial Vehicle Lease,26/07/12,IJ00012232,2725,CHANDLERS (FARM EQUIPMENT) LTD, 
East Lindsey District Council,http://statistics.data.gov.uk/id/local-authority/32UC,Service Development Manager,Commercial Vehicle Lease,26/07/12,IJ00012233,1950,CHANDLERS (FARM EQUIPMENT) LTD, 
East Lindsey District Council,http://statistics.data.gov.uk/id/local-authority/32UC,Service Development Manager,Commercial Vehicle Lease,26/07/12,IJ00012234,2725,CHANDLERS (FARM EQUIPMENT) LTD, 
East Lindsey District Council,http://statistics.data.gov.uk/id/local-authority/32UC,Theatre Manager,Buildings Maintenance - Programmed,26/07/12,IJ00012247,5215.92,J MELTON LTD, 
East Lindsey District Council,http://statistics.data.gov.uk/id/local-authority/32UC,Theatre Manager,Buildings Maintenance - Programmed,26/07/12,IJ00012248,859.17,J MELTON LTD, 
East Lindsey District Council,http://statistics.data.gov.uk/id/local-authority/32UC,Service Development Manager,Materials and Consumables,26/07/12,IJ00012317,713,STOWLIN LTD, 
East Lindsey District Council,http://statistics.data.gov.uk/id/local-authority/32UC,Service Development Manager,Materials and Consumables,26/07/12,IJ00012318,537.33,STOWLIN LTD, 
East Lindsey District Council,http://statistics.data.gov.uk/id/local-authority/32UC,Service Development Manager,Materials and Consumables,26/07/12,IJ00012318,269.37,STOWLIN LTD, 
East Lindsey District Council,http://statistics.data.gov.uk/id/local-authority/32UC,Capital WIP,Grants and Contributions to Outside Bodies- No Service Recei,26/07/12,IJ00012363,7061.98,COTTS BUILDERS AND CONTRACTORS, 
East Lindsey District Council,http://statistics.data.gov.uk/id/local-authority/32UC,Capital WIP,Grants and Contributions to Outside Bodies- No Service Recei,26/07/12,IJ00012363,2704.43,COTTS BUILDERS AND CONTRACTORS, 
East Lindsey District Council,http://statistics.data.gov.uk/id/local-authority/32UC,Communications Manager,Telephones,26/07/12,IJ00012171,31.24,VODAFONE CORPORATE LIMITED, 
East Lindsey District Council,http://statistics.data.gov.uk/id/local-authority/32UC,Communications Manager,Telephones,26/07/12,IJ00012171,11.78,VODAFONE CORPORATE LIMITED, 
East Lindsey District Council,http://statistics.data.gov.uk/id/local-authority/32UC,Theatre Manager,Telephones,26/07/12,IJ00012171,0.54,VODAFONE CORPORATE LIMITED, 
East Lindsey District Council,http://statistics.data.gov.uk/id/local-authority/32UC,Democracy Manager,Telephones,26/07/12,IJ00012171,0.27,VODAFONE CORPORATE LIMITED, 
East Lindsey District Council,http://statistics.data.gov.uk/id/local-authority/32UC,Corporate Accounting,Telephones,26/07/12,IJ00012171,0.27,VODAFONE CORPORATE LIMITED, 
East Lindsey District Council,http://statistics.data.gov.uk/id/local-authority/32UC,Corporate Accounting,Telephones,26/07/12,IJ00012171,137.74,VODAFONE CORPORATE LIMITED, 
East Lindsey District Council,http://statistics.data.gov.uk/id/local-authority/32UC,Corporate Accounting,Telephones,26/07/12,IJ00012171,5.54,VODAFONE CORPORATE LIMITED, 
East Lindsey District Council,http://statistics.data.gov.uk/id/local-authority/32UC,Corporate Accounting,Telephones,26/07/12,IJ00012171,0.27,VODAFONE CORPORATE LIMITED, 
East Lindsey District Council,http://statistics.data.gov.uk/id/local-authority/32UC,Corporate Accounting,Telephones,26/07/12,IJ00012171,55.86,VODAFONE CORPORATE LIMITED, 
East Lindsey District Council,http://statistics.data.gov.uk/id/local-authority/32UC,Corporate Accounting,Telephones,26/07/12,IJ00012171,5.17,VODAFONE CORPORATE LIMITED, 
East Lindsey District Council,http://statistics.data.gov.uk/id/local-authority/32UC,TL Partnerships & Grants,Telephones,26/07/12,IJ00012171,7.06,VODAFONE CORPORATE LIMITED, 
East Lindsey District Council,http://statistics.data.gov.uk/id/local-authority/32UC,TL Partnerships & Grants,Telephones,26/07/12,IJ00012171,3.81,VODAFONE CORPORATE LIMITED, 
East Lindsey District Council,http://statistics.data.gov.uk/id/local-authority/32UC,Housing Support TL,Telephones,26/07/12,IJ00012171,78.26,VODAFONE CORPORATE LIMITED, 
East Lindsey District Council,http://statistics.data.gov.uk/id/local-authority/32UC,Housing Support TL,Telephones,26/07/12,IJ00012171,112.19,VODAFONE CORPORATE LIMITED, 
East Lindsey District Council,http://statistics.data.gov.uk/id/local-authority/32UC,Sports Development,Telephones,26/07/12,IJ00012171,24.04,VODAFONE CORPORATE LIMITED, 
East Lindsey District Council,http://statistics.data.gov.uk/id/local-authority/32UC,Sports Development,Telephones,26/07/12,IJ00012171,22.15,VODAFONE CORPORATE LIMITED, 
East Lindsey District Council,http://statistics.data.gov.uk/id/local-authority/32UC,Sports Development,Telephones,26/07/12,IJ00012171,0.54,VODAFONE CORPORATE LIMITED, 
East Lindsey District Council,http://statistics.data.gov.uk/id/local-authority/32UC,Sports Development,Telephones,26/07/12,IJ00012171,40.51,VODAFONE CORPORATE LIMITED, 
East Lindsey District Council,http://statistics.data.gov.uk/id/local-authority/32UC,Sports Development,Telephones,26/07/12,IJ00012171,0.54,VODAFONE CORPORATE LIMITED, 
East Lindsey District Council,http://statistics.data.gov.uk/id/local-authority/32UC,Service Development Manager,Telephones,26/07/12,IJ00012171,1.03,VODAFONE CORPORATE LIMITED, 
East Lindsey District Council,http://statistics.data.gov.uk/id/local-authority/32UC,Service Development Manager,Telephones,26/07/12,IJ00012171,304.01,VODAFONE CORPORATE LIMITED, 
East Lindsey District Council,http://statistics.data.gov.uk/id/local-authority/32UC,Service Development Manager,Telephones,26/07/12,IJ00012171,1.6,VODAFONE CORPORATE LIMITED, 
East Lindsey District Council,http://statistics.data.gov.uk/id/local-authority/32UC,Building Control Partnership,Telephones,26/07/12,IJ00012171,408.55,VODAFONE CORPORATE LIMITED, 
East Lindsey District Council,http://statistics.data.gov.uk/id/local-authority/32UC,Building Control Partnership,Telephones,26/07/12,IJ00012171,183.78,VODAFONE CORPORATE LIMITED, 
East Lindsey District Council,http://statistics.data.gov.uk/id/local-authority/32UC,Building Control Partnership,Telephones,26/07/12,IJ00012171,2.4,VODAFONE CORPORATE LIMITED, 
East Lindsey District Council,http://statistics.data.gov.uk/id/local-authority/32UC,Building Control,Telephones,26/07/12,IJ00012171,2.67,VODAFONE CORPORATE LIMITED, 
East Lindsey District Council,http://statistics.data.gov.uk/id/local-authority/32UC,Business Development Manager,Telephones,26/07/12,IJ00012171,0.27,VODAFONE CORPORATE LIMITED, 
East Lindsey District Council,http://statistics.data.gov.uk/id/local-authority/32UC,Business Development Manager,Telephones,26/07/12,IJ00012171,17.88,VODAFONE CORPORATE LIMITED, 
East Lindsey District Council,http://statistics.data.gov.uk/id/local-authority/32UC,Business Innovation Manager,Telephones,26/07/12,IJ00012171,4.4,VODAFONE CORPORATE LIMITED, 
East Lindsey District Council,http://statistics.data.gov.uk/id/local-authority/32UC,Performance Monitoring Manager,Telephones,26/07/12,IJ00012171,0.4,VODAFONE CORPORATE LIMITED, 
East Lindsey District Council,http://statistics.data.gov.uk/id/local-authority/32UC,Performance Monitoring Manager,Telephones,26/07/12,IJ00012171,0.4,VODAFONE CORPORATE LIMITED, 
East Lindsey District Council,http://statistics.data.gov.uk/id/local-authority/32UC,Cultural & Related Services,Telephones,26/07/12,IJ00012171,13.25,VODAFONE CORPORATE LIMITED, 
East Lindsey District Council,http://statistics.data.gov.uk/id/local-authority/32UC,Cultural & Related Services,Telephones,26/07/12,IJ00012171,10.56,VODAFONE CORPORATE LIMITED, 
East Lindsey District Council,http://statistics.data.gov.uk/id/local-authority/32UC,Commercial Team Leader,Telephones,26/07/12,IJ00012171,66.58,VODAFONE CORPORATE LIMITED, 
East Lindsey District Council,http://statistics.data.gov.uk/id/local-authority/32UC,Commercial Team Leader,Telephones,26/07/12,IJ00012171,10.86,VODAFONE CORPORATE LIMITED, 
East Lindsey District Council,http://statistics.data.gov.uk/id/local-authority/32UC,Chief Executive,Telephones,26/07/12,IJ00012171,4.8,VODAFONE CORPORATE LIMITED, 
East Lindsey District Council,http://statistics.data.gov.uk/id/local-authority/32UC,Chief Executive,Telephones,26/07/12,IJ00012171,9.7,VODAFONE CORPORATE LIMITED, 
East Lindsey District Council,http://statistics.data.gov.uk/id/local-authority/32UC,Chief Executive,Telephones,26/07/12,IJ00012171,12.77,VODAFONE CORPORATE LIMITED, 
East Lindsey District Council,http://statistics.data.gov.uk/id/local-authority/32UC,Chief Executive,Telephones,26/07/12,IJ00012171,40.45,VODAFONE CORPORATE LIMITED, 
East Lindsey District Council,http://statistics.data.gov.uk/id/local-authority/32UC,Democracy Manager,Telephones,26/07/12,IJ00012171,13.74,VODAFONE CORPORATE LIMITED, 
East Lindsey District Council,http://statistics.data.gov.uk/id/local-authority/32UC,Democracy Manager,Telephones,26/07/12,IJ00012171,0.27,VODAFONE CORPORATE LIMITED, 
East Lindsey District Council,http://statistics.data.gov.uk/id/local-authority/32UC,Development Control,Telephones,26/07/12,IJ00012171,10.44,VODAFONE CORPORATE LIMITED, 
East Lindsey District Council,http://statistics.data.gov.uk/id/local-authority/32UC,Enforcement Team Leader,Telephones,26/07/12,IJ00012171,25.92,VODAFONE CORPORATE LIMITED, 
East Lindsey District Council,http://statistics.data.gov.uk/id/local-authority/32UC,Enforcement Team Leader,Telephones,26/07/12,IJ00012171,33.08,VODAFONE CORPORATE LIMITED, 
East Lindsey District Council,http://statistics.data.gov.uk/id/local-authority/32UC,Enforcement Team Leader,Telephones,26/07/12,IJ00012171,86.6,VODAFONE CORPORATE LIMITED, 
East Lindsey District Council,http://statistics.data.gov.uk/id/local-authority/32UC,Enforcement Team Leader,Telephones,26/07/12,IJ00012171,53.62,VODAFONE CORPORATE LIMITED, 
East Lindsey District Council,http://statistics.data.gov.uk/id/local-authority/32UC,Enforcement Team Leader,Telephones,26/07/12,IJ00012171,193.61,VODAFONE CORPORATE LIMITED, 
East Lindsey District Council,http://statistics.data.gov.uk/id/local-authority/32UC,Environment Team Leader,Telephones,26/07/12,IJ00012171,30.57,VODAFONE CORPORATE LIMITED, 
East Lindsey District Council,http://statistics.data.gov.uk/id/local-authority/32UC,Environment Team Leader,Telephones,26/07/12,IJ00012171,202.03,VODAFONE CORPORATE LIMITED, 
East Lindsey District Council,http://statistics.data.gov.uk/id/local-authority/32UC,Environment Team Leader,Telephones,26/07/12,IJ00012171,9.77,VODAFONE CORPORATE LIMITED, 
East Lindsey District Council,http://statistics.data.gov.uk/id/local-authority/32UC,Service Development Managers,Telephones,26/07/12,IJ00012171,9.76,VODAFONE CORPORATE LIMITED, 
East Lindsey District Council,http://statistics.data.gov.uk/id/local-authority/32UC,Theatre Manager,Telephones,26/07/12,IJ00012171,0.4,VODAFONE CORPORATE LIMITED, 
East Lindsey District Council,http://statistics.data.gov.uk/id/local-authority/32UC,Theatre Manager,Telephones,26/07/12,IJ00012171,12.32,VODAFONE CORPORATE LIMITED, 
East Lindsey District Council,http://statistics.data.gov.uk/id/local-authority/32UC,Theatre Manager,Telephones,26/07/12,IJ00012171,5.23,VODAFONE CORPORATE LIMITED, 
East Lindsey District Council,http://statistics.data.gov.uk/id/local-authority/32UC,Theatre Manager,Telephones,26/07/12,IJ00012171,5.18,VODAFONE CORPORATE LIMITED, 
East Lindsey District Council,http://statistics.data.gov.uk/id/local-authority/32UC,Health Team Leader,Telephones,26/07/12,IJ00012171,18.36,VODAFONE CORPORATE LIMITED, 
East Lindsey District Council,http://statistics.data.gov.uk/id/local-authority/32UC,Health Team Leader,Telephones,26/07/12,IJ00012171,6.72,VODAFONE CORPORATE LIMITED, 
East Lindsey District Council,http://statistics.data.gov.uk/id/local-authority/32UC,Health Team Leader,Telephones,26/07/12,IJ00012171,50.7,VODAFONE CORPORATE LIMITED, 
East Lindsey District Council,http://statistics.data.gov.uk/id/local-authority/32UC,Health Team Leader,Telephones,26/07/12,IJ00012171,7.07,VODAFONE CORPORATE LIMITED, 
East Lindsey District Council,http://statistics.data.gov.uk/id/local-authority/32UC,Hsg Advice & Homelessness TL,Telephones,26/07/12,IJ00012171,4.62,VODAFONE CORPORATE LIMITED, 
East Lindsey District Council,http://statistics.data.gov.uk/id/local-authority/32UC,Hsg Advice & Homelessness TL,Telephones,26/07/12,IJ00012171,35.69,VODAFONE CORPORATE LIMITED, 
East Lindsey District Council,http://statistics.data.gov.uk/id/local-authority/32UC,Hsg Private Sector TL,Telephones,26/07/12,IJ00012171,12.83,VODAFONE CORPORATE LIMITED, 
East Lindsey District Council,http://statistics.data.gov.uk/id/local-authority/32UC,Hsg Private Sector TL,Telephones,26/07/12,IJ00012171,8.68,VODAFONE CORPORATE LIMITED, 
East Lindsey District Council,http://statistics.data.gov.uk/id/local-authority/32UC,Hsg Private Sector TL,Telephones,26/07/12,IJ00012171,39.57,VODAFONE CORPORATE LIMITED, 
East Lindsey District Council,http://statistics.data.gov.uk/id/local-authority/32UC,Hsg Private Sector TL,Telephones,26/07/12,IJ00012171,2.4,VODAFONE CORPORATE LIMITED, 
East Lindsey District Council,http://statistics.data.gov.uk/id/local-authority/32UC,Hsg Private Sector TL,Telephones,26/07/12,IJ00012171,12.67,VODAFONE CORPORATE LIMITED, 
East Lindsey District Council,http://statistics.data.gov.uk/id/local-authority/32UC,Housing Support TL,Telephones,26/07/12,IJ00012171,11.95,VODAFONE CORPORATE LIMITED, 
East Lindsey District Council,http://statistics.data.gov.uk/id/local-authority/32UC,Housing Support TL,Telephones,26/07/12,IJ00012171,308.38,VODAFONE CORPORATE LIMITED, 
East Lindsey District Council,http://statistics.data.gov.uk/id/local-authority/32UC,Housing Support TL,Telephones,26/07/12,IJ00012171,69.54,VODAFONE CORPORATE LIMITED, 
East Lindsey District Council,http://statistics.data.gov.uk/id/local-authority/32UC,Housing Support TL,Telephones,26/07/12,IJ00012171,15.15,VODAFONE CORPORATE LIMITED, 
East Lindsey District Council,http://statistics.data.gov.uk/id/local-authority/32UC,Housing Support TL,Telephones,26/07/12,IJ00012171,17.73,VODAFONE CORPORATE LIMITED, 
East Lindsey District Council,http://statistics.data.gov.uk/id/local-authority/32UC,Meridian Facility Manager,Telephones,26/07/12,IJ00012171,3,VODAFONE CORPORATE LIMITED, 
East Lindsey District Council,http://statistics.data.gov.uk/id/local-authority/32UC,Meridian Facility Manager,Telephones,26/07/12,IJ00012171,0.27,VODAFONE CORPORATE LIMITED, 
East Lindsey District Council,http://statistics.data.gov.uk/id/local-authority/32UC,Meridian Facility Manager,Telephones,26/07/12,IJ00012171,5.56,VODAFONE CORPORATE LIMITED, 
East Lindsey District Council,http://statistics.data.gov.uk/id/local-authority/32UC,Planning & Housing Policy Manager,Telephones,26/07/12,IJ00012171,9.5,VODAFONE CORPORATE LIMITED, 
East Lindsey District Council,http://statistics.data.gov.uk/id/local-authority/32UC,Planning & Housing Policy Manager,Telephones,26/07/12,IJ00012171,13.7,VODAFONE CORPORATE LIMITED, 
East Lindsey District Council,http://statistics.data.gov.uk/id/local-authority/32UC,Policy & Project Manager,Telephones,26/07/12,IJ00012171,0.4,VODAFONE CORPORATE LIMITED, 
East Lindsey District Council,http://statistics.data.gov.uk/id/local-authority/32UC,Policy & Project Manager,Telephones,26/07/12,IJ00012171,0.4,VODAFONE CORPORATE LIMITED, 
East Lindsey District Council,http://statistics.data.gov.uk/id/local-authority/32UC,Policy & Project Manager,Telephones,26/07/12,IJ00012171,0.4,VODAFONE CORPORATE LIMITED, 
East Lindsey District Council,http://statistics.data.gov.uk/id/local-authority/32UC,Policy & Project Manager,Telephones,26/07/12,IJ00012171,18.27,VODAFONE CORPORATE LIMITED, 
East Lindsey District Council,http://statistics.data.gov.uk/id/local-authority/32UC,Policy & Project Manager,Telephones,26/07/12,IJ00012171,0.4,VODAFONE CORPORATE LIMITED, 
East Lindsey District Council,http://statistics.data.gov.uk/id/local-authority/32UC,Policy & Project Manager,Telephones,26/07/12,IJ00012171,2.64,VODAFONE CORPORATE LIMITED, 
East Lindsey District Council,http://statistics.data.gov.uk/id/local-authority/32UC,Policy & Project Manager,Telephones,26/07/12,IJ00012171,1.27,VODAFONE CORPORATE LIMITED, 
East Lindsey District Council,http://statistics.data.gov.uk/id/local-authority/32UC,Policy & Project Manager,Telephones,26/07/12,IJ00012171,37.53,VODAFONE CORPORATE LIMITED, 
East Lindsey District Council,http://statistics.data.gov.uk/id/local-authority/32UC,Policy & Project Manager,Telephones,26/07/12,IJ00012171,13.99,VODAFONE CORPORATE LIMITED, 
East Lindsey District Council,http://statistics.data.gov.uk/id/local-authority/32UC,Horncastle Pool Manager,Telephones,26/07/12,IJ00012171,0.27,VODAFONE CORPORATE LIMITED, 
East Lindsey District Council,http://statistics.data.gov.uk/id/local-authority/32UC,TL Property,Telephones,26/07/12,IJ00012171,0.27,VODAFONE CORPORATE LIMITED, 
East Lindsey District Council,http://statistics.data.gov.uk/id/local-authority/32UC,TL Property,Telephones,26/07/12,IJ00012171,22.47,VODAFONE CORPORATE LIMITED, 
East Lindsey District Council,http://statistics.data.gov.uk/id/local-authority/32UC,BM Property & Technical,Telephones,26/07/12,IJ00012171,1.42,VODAFONE CORPORATE LIMITED, 
East Lindsey District Council,http://statistics.data.gov.uk/id/local-authority/32UC,BM Regulatory Services,Telephones,26/07/12,IJ00012171,4.4,VODAFONE CORPORATE LIMITED, 
East Lindsey District Council,http://statistics.data.gov.uk/id/local-authority/32UC,Strategic Director (JF),Telephones,26/07/12,IJ00012171,1.27,VODAFONE CORPORATE LIMITED, 
East Lindsey District Council,http://statistics.data.gov.uk/id/local-authority/32UC,Service Development Managers,Telephones,26/07/12,IJ00012171,12.26,VODAFONE CORPORATE LIMITED, 
East Lindsey District Council,http://statistics.data.gov.uk/id/local-authority/32UC,Service Development Managers,Telephones,26/07/12,IJ00012171,9.56,VODAFONE CORPORATE LIMITED, 
East Lindsey District Council,http://statistics.data.gov.uk/id/local-authority/32UC,Strategic Director (SD),Telephones,26/07/12,IJ00012171,12.51,VODAFONE CORPORATE LIMITED, 
East Lindsey District Council,http://statistics.data.gov.uk/id/local-authority/32UC,Sports Centre Manager,Telephones,26/07/12,IJ00012171,39.75,VODAFONE CORPORATE LIMITED, 
East Lindsey District Council,http://statistics.data.gov.uk/id/local-authority/32UC,Sports Development,Telephones,26/07/12,IJ00012171,46.04,VODAFONE CORPORATE LIMITED, 
East Lindsey District Council,http://statistics.data.gov.uk/id/local-authority/32UC,Sports Development,Telephones,26/07/12,IJ00012171,2.34,VODAFONE CORPORATE LIMITED, 
East Lindsey District Council,http://statistics.data.gov.uk/id/local-authority/32UC,BM Sports Facilities,Telephones,26/07/12,IJ00012171,12.1,VODAFONE CORPORATE LIMITED, 
East Lindsey District Council,http://statistics.data.gov.uk/id/local-authority/32UC,Service Development Manager,Telephones,26/07/12,IJ00012171,92.21,VODAFONE CORPORATE LIMITED, 
East Lindsey District Council,http://statistics.data.gov.uk/id/local-authority/32UC,Waste Services Manager,Telephones,26/07/12,IJ00012171,23.95,VODAFONE CORPORATE LIMITED, 
East Lindsey District Council,http://statistics.data.gov.uk/id/local-authority/32UC,Waste Services Manager,Telephones,26/07/12,IJ00012171,41.09,VODAFONE CORPORATE LIMITED, 
East Lindsey District Council,http://statistics.data.gov.uk/id/local-authority/32UC,Service Development Manager,Telephones,26/07/12,IJ00012171,0.54,VODAFONE CORPORATE LIMITED, 
East Lindsey District Council,http://statistics.data.gov.uk/id/local-authority/32UC,Service Development Manager,Telephones,26/07/12,IJ00012171,0.4,VODAFONE CORPORATE LIMITED, 
East Lindsey District Council,http://statistics.data.gov.uk/id/local-authority/32UC,Technical Services Team Leader,Telephones,26/07/12,IJ00012171,7.57,VODAFONE CORPORATE LIMITED, 
East Lindsey District Council,http://statistics.data.gov.uk/id/local-authority/32UC,Technical Services Team Leader,Telephones,26/07/12,IJ00012171,90.7,VODAFONE CORPORATE LIMITED, 
East Lindsey District Council,http://statistics.data.gov.uk/id/local-authority/32UC,Technical Services Team Leader,Telephones,26/07/12,IJ00012171,8.61,VODAFONE CORPORATE LIMITED, 
East Lindsey District Council,http://statistics.data.gov.uk/id/local-authority/32UC,Technical Services Team Leader,Telephones,26/07/12,IJ00012171,10.97,VODAFONE CORPORATE LIMITED, 
East Lindsey District Council,http://statistics.data.gov.uk/id/local-authority/32UC,Theatre Manager,Telephones,26/07/12,IJ00012171,2.27,VODAFONE CORPORATE LIMITED, 
East Lindsey District Council,http://statistics.data.gov.uk/id/local-authority/32UC,Theatre Manager,Telephones,26/07/12,IJ00012171,13.93,VODAFONE CORPORATE LIMITED, 
East Lindsey District Council,http://statistics.data.gov.uk/id/local-authority/32UC,Waste Services Manager,Telephones,26/07/12,IJ00012171,135.36,VODAFONE CORPORATE LIMITED, 
East Lindsey District Council,http://statistics.data.gov.uk/id/local-authority/32UC,Business Development Manager,Telephones,26/07/12,IJ00012171,0.27,VODAFONE CORPORATE LIMITED, 
East Lindsey District Council,http://statistics.data.gov.uk/id/local-authority/32UC,Area Working,Telephones,26/07/12,IJ00012171,19.12,VODAFONE CORPORATE LIMITED, 
East Lindsey District Council,http://statistics.data.gov.uk/id/local-authority/32UC,Commercial Team Leader,Professional & Contractors Fees,26/07/12,IJ00012221,536.04,COOK TIMSON AND BETT, 
East Lindsey District Council,http://statistics.data.gov.uk/id/local-authority/32UC,Commercial Team Leader,Other Private Contractors,26/07/12,IJ00012221,268.04,COOK TIMSON AND BETT, 
East Lindsey District Council,http://statistics.data.gov.uk/id/local-authority/32UC,Capital WIP,Grants and Contributions to Outside Bodies- No Service Recei,26/07/12,IJ00012361,8388.37,M & M GRANTHAM, 
East Lindsey District Council,http://statistics.data.gov.uk/id/local-authority/32UC,Hsg Private Sector TL,Other Income,26/07/12,IJ00012361,-890.03,M & M GRANTHAM, 
East Lindsey District Council,http://statistics.data.gov.uk/id/local-authority/32UC,Debt Recovery TL,Postages,26/07/12,IJ00012148,9.16,ROYAL MAIL, 
East Lindsey District Council,http://statistics.data.gov.uk/id/local-authority/32UC,Corporate Accounting,Postages,26/07/12,IJ00012148,946.78,ROYAL MAIL, 
East Lindsey District Council,http://statistics.data.gov.uk/id/local-authority/32UC,Corporate Accounting,Postages,26/07/12,IJ00012148,309.55,ROYAL MAIL, 
East Lindsey District Council,http://statistics.data.gov.uk/id/local-authority/32UC,Corporate Accounting,Postages,26/07/12,IJ00012148,774.24,ROYAL MAIL, 
East Lindsey District Council,http://statistics.data.gov.uk/id/local-authority/32UC,Corporate Accounting,Postages,26/07/12,IJ00012148,297.93,ROYAL MAIL, 
East Lindsey District Council,http://statistics.data.gov.uk/id/local-authority/32UC,Corporate Accounting,Postages,26/07/12,IJ00012148,49.47,ROYAL MAIL, 
East Lindsey District Council,http://statistics.data.gov.uk/id/local-authority/32UC,Corporate Accounting,Postages,26/07/12,IJ00012148,16.49,ROYAL MAIL, 
East Lindsey District Council,http://statistics.data.gov.uk/id/local-authority/32UC,Corporate Accounting,Postages,26/07/12,IJ00012148,166.43,ROYAL MAIL, 
East Lindsey District Council,http://statistics.data.gov.uk/id/local-authority/32UC,Business Development Manager,Postages,26/07/12,IJ00012148,237.82,ROYAL MAIL, 
East Lindsey District Council,http://statistics.data.gov.uk/id/local-authority/32UC,Corporate Accounting,Postages,26/07/12,IJ00012149,831.54,ROYAL MAIL, 
East Lindsey District Council,http://statistics.data.gov.uk/id/local-authority/32UC,Corporate Accounting,Postages,26/07/12,IJ00012149,395.29,ROYAL MAIL, 
East Lindsey District Council,http://statistics.data.gov.uk/id/local-authority/32UC,Corporate Accounting,Postages,26/07/12,IJ00012149,1416.27,ROYAL MAIL, 
East Lindsey District Council,http://statistics.data.gov.uk/id/local-authority/32UC,Corporate Accounting,Postages,26/07/12,IJ00012149,585.51,ROYAL MAIL, 
East Lindsey District Council,http://statistics.data.gov.uk/id/local-authority/32UC,Corporate Accounting,Postages,26/07/12,IJ00012149,125.94,ROYAL MAIL, 
East Lindsey District Council,http://statistics.data.gov.uk/id/local-authority/32UC,Corporate Accounting,Postages,26/07/12,IJ00012149,37.27,ROYAL MAIL, 
East Lindsey District Council,http://statistics.data.gov.uk/id/local-authority/32UC,Corporate Accounting,Postages,26/07/12,IJ00012149,364.62,ROYAL MAIL, 
East Lindsey District Council,http://statistics.data.gov.uk/id/local-authority/32UC,Debt Recovery TL,Postages,26/07/12,IJ00012150,7.72,ROYAL MAIL, 
East Lindsey District Council,http://statistics.data.gov.uk/id/local-authority/32UC,Corporate Accounting,Postages,26/07/12,IJ00012150,455.3,ROYAL MAIL, 
East Lindsey District Council,http://statistics.data.gov.uk/id/local-authority/32UC,Corporate Accounting,Postages,26/07/12,IJ00012150,229.81,ROYAL MAIL, 
East Lindsey District Council,http://statistics.data.gov.uk/id/local-authority/32UC,Corporate Accounting,Postages,26/07/12,IJ00012150,431.76,ROYAL MAIL, 
East Lindsey District Council,http://statistics.data.gov.uk/id/local-authority/32UC,Corporate Accounting,Postages,26/07/12,IJ00012150,255.69,ROYAL MAIL, 
East Lindsey District Council,http://statistics.data.gov.uk/id/local-authority/32UC,Corporate Accounting,Postages,26/07/12,IJ00012150,54.33,ROYAL MAIL, 
East Lindsey District Council,http://statistics.data.gov.uk/id/local-authority/32UC,Corporate Accounting,Postages,26/07/12,IJ00012150,36.68,ROYAL MAIL, 
East Lindsey District Council,http://statistics.data.gov.uk/id/local-authority/32UC,Corporate Accounting,Postages,26/07/12,IJ00012150,66.57,ROYAL MAIL, 
East Lindsey District Council,http://statistics.data.gov.uk/id/local-authority/32UC,Debt Recovery TL,Postages,26/07/12,IJ00012151,20.05,ROYAL MAIL, 
East Lindsey District Council,http://statistics.data.gov.uk/id/local-authority/32UC,Corporate Accounting,Postages,26/07/12,IJ00012151,818.25,ROYAL MAIL, 
East Lindsey District Council,http://statistics.data.gov.uk/id/local-authority/32UC,Corporate Accounting,Postages,26/07/12,IJ00012151,325.26,ROYAL MAIL, 
East Lindsey District Council,http://statistics.data.gov.uk/id/local-authority/32UC,Corporate Accounting,Postages,26/07/12,IJ00012151,699.85,ROYAL MAIL, 
East Lindsey District Council,http://statistics.data.gov.uk/id/local-authority/32UC,Corporate Accounting,Postages,26/07/12,IJ00012151,322.22,ROYAL MAIL, 
East Lindsey District Council,http://statistics.data.gov.uk/id/local-authority/32UC,Corporate Accounting,Postages,26/07/12,IJ00012151,45.26,ROYAL MAIL, 
East Lindsey District Council,http://statistics.data.gov.uk/id/local-authority/32UC,Corporate Accounting,Postages,26/07/12,IJ00012151,26.97,ROYAL MAIL, 
East Lindsey District Council,http://statistics.data.gov.uk/id/local-authority/32UC,Corporate Accounting,Postages,26/07/12,IJ00012151,66.87,ROYAL MAIL, 
East Lindsey District Council,http://statistics.data.gov.uk/id/local-authority/32UC,Building Control Partnership,Subscriptions to Organisations and Other Bodies,26/07/12,IJ00012157,706,BSI MEMBERSHIP, 
East Lindsey District Council,http://statistics.data.gov.uk/id/local-authority/32UC,Admin Support Team,Other Miscellaneous Expenses,26/07/12,IJ00012168,1179.99,VENDING ENTERPRISES, 
East Lindsey District Council,http://statistics.data.gov.uk/id/local-authority/32UC,Embassy Pool Manager,Other Miscellaneous Expenses,26/07/12,IJ00012276,573.82,VENDING ENTERPRISES, 
East Lindsey District Council,http://statistics.data.gov.uk/id/local-authority/32UC,Waste Services Manager,Other agencies,26/07/12,IJ00012127,926.94,GLASS RECYCLING (UK) LTD, 
East Lindsey District Council,http://statistics.data.gov.uk/id/local-authority/32UC,Shared Legal Services,Lincolnshire Legal Services,26/07/12,IJ00012208,17813.02,LINCOLNSHIRE COUNTY COUNCIL, 
East Lindsey District Council,http://statistics.data.gov.uk/id/local-authority/32UC,Shared Legal Services,Lincolnshire Legal Services,26/07/12,IJ00012208,133.94,LINCOLNSHIRE COUNTY COUNCIL, 
East Lindsey District Council,http://statistics.data.gov.uk/id/local-authority/32UC,Enforcement Team Leader,Buildings Maintenance - Responsive,26/07/12,IJ00012300,993.47,SEYMOUR & CASTLE LTD, 
East Lindsey District Council,http://statistics.data.gov.uk/id/local-authority/32UC,Technical Services Team Leader,Buildings Maintenance - Programmed,26/07/12,IJ00012303,4169.25,SEYMOUR & CASTLE LTD, 
East Lindsey District Council,http://statistics.data.gov.uk/id/local-authority/32UC,Service Development Manager,Fuel & Oil,26/07/12,IJ00012191,674.18,WATSON PETROLEUM LTD, 
East Lindsey District Council,http://statistics.data.gov.uk/id/local-authority/32UC,BALANCE  SHEET,Payroll-Unison,26/07/12,IJ00012176,1790.35,UNISON, 
East Lindsey District Council,http://statistics.data.gov.uk/id/local-authority/32UC,TL Property,Electricity,26/07/12,IJ00012314,193.32,SOUTHERN ELECTRIC PLC, 
East Lindsey District Council,http://statistics.data.gov.uk/id/local-authority/32UC,Policy & Project Manager,Electricity,26/07/12,IJ00012314,791.25,SOUTHERN ELECTRIC PLC, 
East Lindsey District Council,http://statistics.data.gov.uk/id/local-authority/32UC,Service Development Manager,Electricity,26/07/12,IJ00012314,73.64,SOUTHERN ELECTRIC PLC, 
East Lindsey District Council,http://statistics.data.gov.uk/id/local-authority/32UC,Service Development Manager,Electricity,26/07/12,IJ00012314,140.94,SOUTHERN ELECTRIC PLC, 
East Lindsey District Council,http://statistics.data.gov.uk/id/local-authority/32UC,Business Development Manager,Electricity,26/07/12,IJ00012314,27.36,SOUTHERN ELECTRIC PLC, 
East Lindsey District Council,http://statistics.data.gov.uk/id/local-authority/32UC,Technical Services Team Leader,Electricity,26/07/12,IJ00012314,182.34,SOUTHERN ELECTRIC PLC, 
East Lindsey District Council,http://statistics.data.gov.uk/id/local-authority/32UC,Enforcement Team Leader,Electricity,26/07/12,IJ00012314,28.66,SOUTHERN ELECTRIC PLC, 
East Lindsey District Council,http://statistics.data.gov.uk/id/local-authority/32UC,TL Property,Electricity,26/07/12,IJ00012314,22.23,SOUTHERN ELECTRIC PLC, 
East Lindsey District Council,http://statistics.data.gov.uk/id/local-authority/32UC,Service Development Manager,Electricity,26/07/12,IJ00012314,729.36,SOUTHERN ELECTRIC PLC, 
East Lindsey District Council,http://statistics.data.gov.uk/id/local-authority/32UC,SM Economic Regen & Property,Electricity,26/07/12,IJ00012314,73.73,SOUTHERN ELECTRIC PLC, 
East Lindsey District Council,http://statistics.data.gov.uk/id/local-authority/32UC,TL Property,Electricity,26/07/12,IJ00012315,213.9,SOUTHERN ELECTRIC PLC, 
East Lindsey District Council,http://statistics.data.gov.uk/id/local-authority/32UC,Policy & Project Manager,Electricity,26/07/12,IJ00012315,454.62,SOUTHERN ELECTRIC PLC, 
East Lindsey District Council,http://statistics.data.gov.uk/id/local-authority/32UC,Service Development Manager,Electricity,26/07/12,IJ00012315,225.58,SOUTHERN ELECTRIC PLC, 
East Lindsey District Council,http://statistics.data.gov.uk/id/local-authority/32UC,Service Development Manager,Electricity,26/07/12,IJ00012315,227.07,SOUTHERN ELECTRIC PLC, 
East Lindsey District Council,http://statistics.data.gov.uk/id/local-authority/32UC,Service Development Manager,Electricity,26/07/12,IJ00012315,78.41,SOUTHERN ELECTRIC PLC, 
East Lindsey District Council,http://statistics.data.gov.uk/id/local-authority/32UC,Business Development Manager,Electricity,26/07/12,IJ00012315,7530.83,SOUTHERN ELECTRIC PLC, 
East Lindsey District Council,http://statistics.data.gov.uk/id/local-authority/32UC,Service Development Manager,Electricity,26/07/12,IJ00012315,44.93,SOUTHERN ELECTRIC PLC, 
East Lindsey District Council,http://statistics.data.gov.uk/id/local-authority/32UC,Service Development Manager,Electricity,26/07/12,IJ00012315,875.59,SOUTHERN ELECTRIC PLC, 
East Lindsey District Council,http://statistics.data.gov.uk/id/local-authority/32UC,Service Development Manager,Electricity,26/07/12,IJ00012315,844.87,SOUTHERN ELECTRIC PLC, 
East Lindsey District Council,http://statistics.data.gov.uk/id/local-authority/32UC,Business Development Manager,Electricity,26/07/12,IJ00012315,374.75,SOUTHERN ELECTRIC PLC, 
East Lindsey District Council,http://statistics.data.gov.uk/id/local-authority/32UC,TL Property,Electricity,26/07/12,IJ00012316,3553.39,SOUTHERN ELECTRIC PLC, 
East Lindsey District Council,http://statistics.data.gov.uk/id/local-authority/32UC,TL Property,Electricity,26/07/12,IJ00012316,227.91,SOUTHERN ELECTRIC PLC, 
East Lindsey District Council,http://statistics.data.gov.uk/id/local-authority/32UC,Policy & Project Manager,Electricity,26/07/12,IJ00012316,765.89,SOUTHERN ELECTRIC PLC, 
East Lindsey District Council,http://statistics.data.gov.uk/id/local-authority/32UC,Service Development Manager,Electricity,26/07/12,IJ00012316,209.15,SOUTHERN ELECTRIC PLC, 
East Lindsey District Council,http://statistics.data.gov.uk/id/local-authority/32UC,Service Development Manager,Electricity,26/07/12,IJ00012316,152.27,SOUTHERN ELECTRIC PLC, 
East Lindsey District Council,http://statistics.data.gov.uk/id/local-authority/32UC,Technical Services Team Leader,Electricity,26/07/12,IJ00012316,111.83,SOUTHERN ELECTRIC PLC, 
East Lindsey District Council,http://statistics.data.gov.uk/id/local-authority/32UC,Meridian Facility Manager,Electricity,26/07/12,IJ00012316,4521.36,SOUTHERN ELECTRIC PLC, 
East Lindsey District Council,http://statistics.data.gov.uk/id/local-authority/32UC,Meridian Facility Manager,Electricity,26/07/12,IJ00012316,387.51,SOUTHERN ELECTRIC PLC, 
East Lindsey District Council,http://statistics.data.gov.uk/id/local-authority/32UC,TL Property,Electricity,26/07/12,IJ00012316,227.55,SOUTHERN ELECTRIC PLC, 
East Lindsey District Council,http://statistics.data.gov.uk/id/local-authority/32UC,Service Development Manager,Electricity,26/07/12,IJ00012316,1124.2,SOUTHERN ELECTRIC PLC, 
East Lindsey District Council,http://statistics.data.gov.uk/id/local-authority/32UC,Sports Centre Manager,Electricity,26/07/12,IJ00012321,651.95,SOUTHERN ELECTRIC PLC, 
East Lindsey District Council,http://statistics.data.gov.uk/id/local-authority/32UC,Theatre Manager,Electricity,26/07/12,IJ00012321,963.56,SOUTHERN ELECTRIC PLC, 
East Lindsey District Council,http://statistics.data.gov.uk/id/local-authority/32UC,Service Development Manager,Electricity,26/07/12,IJ00012321,292.51,SOUTHERN ELECTRIC PLC, 
East Lindsey District Council,http://statistics.data.gov.uk/id/local-authority/32UC,Service Development Manager,Electricity,26/07/12,IJ00012321,330.71,SOUTHERN ELECTRIC PLC, 
East Lindsey District Council,http://statistics.data.gov.uk/id/local-authority/32UC,Service Development Manager,Electricity,26/07/12,IJ00012321,116.2,SOUTHERN ELECTRIC PLC, 
East Lindsey District Council,http://statistics.data.gov.uk/id/local-authority/32UC,Theatre Manager,Electricity,26/07/12,IJ00012321,73.13,SOUTHERN ELECTRIC PLC, 
East Lindsey District Council,http://statistics.data.gov.uk/id/local-authority/32UC,Embassy Pool Manager,Electricity,26/07/12,IJ00012379,2493.83,SOUTHERN ELECTRIC PLC, 
East Lindsey District Council,http://statistics.data.gov.uk/id/local-authority/32UC,Embassy Pool Manager,Buildings Maintenance - Programmed,26/07/12,IJ00012259,645.98,MARK ELDIN JOINERY, 
East Lindsey District Council,http://statistics.data.gov.uk/id/local-authority/32UC,TL Property,Buildings Maintenance - Programmed,26/07/12,IJ00012310,1303.56,COOPER LIGHTING & SECURITY, 
East Lindsey District Council,http://statistics.data.gov.uk/id/local-authority/32UC,TL Property,Buildings Maintenance - Programmed,26/07/12,IJ00012311,678.12,COOPER LIGHTING & SECURITY, 
East Lindsey District Council,http://statistics.data.gov.uk/id/local-authority/32UC,Service Development Manager,Buildings Maintenance - Programmed,26/07/12,IJ00012312,887.38,DEVLIN DECORATORS LTD, 
East Lindsey District Council,http://statistics.data.gov.uk/id/local-authority/32UC,Theatre Manager,Buildings Maintenance - Responsive,26/07/12,IJ00012320,1278.61,DEVLIN DECORATORS LTD, 
East Lindsey District Council,http://statistics.data.gov.uk/id/local-authority/32UC,Capital WIP,Works to Buildings (main Contractor),26/07/12,IJ00012118,786,FOXHALL CONSTRUCTION LTD, 
East Lindsey District Council,http://statistics.data.gov.uk/id/local-authority/32UC,Capital WIP,Works to Buildings (main Contractor),26/07/12,IJ00012119,3500,FOXHALL CONSTRUCTION LTD, 
East Lindsey District Council,http://statistics.data.gov.uk/id/local-authority/32UC,Capital WIP,Grants and Contributions to Outside Bodies- No Service Recei,26/07/12,IJ00012349,5137,J SIVILL LTD, 
East Lindsey District Council,http://statistics.data.gov.uk/id/local-authority/32UC,Hsg Private Sector TL,Other Income,26/07/12,IJ00012349,-458.66,J SIVILL LTD, 
East Lindsey District Council,http://statistics.data.gov.uk/id/local-authority/32UC,Capital WIP,Works to Buildings (Sub Contractors),26/07/12,IJ00012329,1599,D & D ENGINEERING (LINCS) LTD, 
East Lindsey District Council,http://statistics.data.gov.uk/id/local-authority/32UC,TL Property,Gas,26/07/12,IJ00012376,462.28,ESPO, 
East Lindsey District Council,http://statistics.data.gov.uk/id/local-authority/32UC,TL Property,Gas,26/07/12,IJ00012376,2143.37,ESPO, 
East Lindsey District Council,http://statistics.data.gov.uk/id/local-authority/32UC,TL Property,Gas,26/07/12,IJ00012376,1522.71,ESPO, 
East Lindsey District Council,http://statistics.data.gov.uk/id/local-authority/32UC,TL Property,Gas,26/07/12,IJ00012376,122.51,ESPO, 
East Lindsey District Council,http://statistics.data.gov.uk/id/local-authority/32UC,TL Property,Gas,26/07/12,IJ00012376,88.52,ESPO, 
East Lindsey District Council,http://statistics.data.gov.uk/id/local-authority/32UC,Policy & Project Manager,Gas,26/07/12,IJ00012376,32.54,ESPO, 
East Lindsey District Council,http://statistics.data.gov.uk/id/local-authority/32UC,Meridian Facility Manager,Gas,26/07/12,IJ00012376,3.43,ESPO, 
East Lindsey District Council,http://statistics.data.gov.uk/id/local-authority/32UC,Meridian Facility Manager,Gas,26/07/12,IJ00012376,40.15,ESPO, 
East Lindsey District Council,http://statistics.data.gov.uk/id/local-authority/32UC,Meridian Facility Manager,Gas,26/07/12,IJ00012376,-5.71,ESPO, 
East Lindsey District Council,http://statistics.data.gov.uk/id/local-authority/32UC,Meridian Facility Manager,Gas,26/07/12,IJ00012376,-7.62,ESPO, 
East Lindsey District Council,http://statistics.data.gov.uk/id/local-authority/32UC,Meridian Facility Manager,Gas,26/07/12,IJ00012376,-3.81,ESPO, 
East Lindsey District Council,http://statistics.data.gov.uk/id/local-authority/32UC,Meridian Facility Manager,Gas,26/07/12,IJ00012376,-4.56,ESPO, 
East Lindsey District Council,http://statistics.data.gov.uk/id/local-authority/32UC,Meridian Facility Manager,Gas,26/07/12,IJ00012376,-4.18,ESPO, 
East Lindsey District Council,http://statistics.data.gov.uk/id/local-authority/32UC,TL Property,Gas,26/07/12,IJ00012376,9.84,ESPO, 
East Lindsey District Council,http://statistics.data.gov.uk/id/local-authority/32UC,Service Development Manager,Gas,26/07/12,IJ00012376,38.79,ESPO, 
East Lindsey District Council,http://statistics.data.gov.uk/id/local-authority/32UC,TL Property,Electricity,26/07/12,IJ00012376,8.33,ESPO, 
East Lindsey District Council,http://statistics.data.gov.uk/id/local-authority/32UC,SM Economic Regen & Property,Gas,26/07/12,IJ00012376,30,ESPO, 
East Lindsey District Council,http://statistics.data.gov.uk/id/local-authority/32UC,Horncastle Pool Manager,Furniture and Equipment,26/07/12,IJ00012392,259.9,ESPO, 
East Lindsey District Council,http://statistics.data.gov.uk/id/local-authority/32UC,TL Partnerships & Grants,Stationery,26/07/12,IJ00012392,26.05,ESPO, 
East Lindsey District Council,http://statistics.data.gov.uk/id/local-authority/32UC,Housing Support TL,Stationery,26/07/12,IJ00012392,40.9,ESPO, 
East Lindsey District Council,http://statistics.data.gov.uk/id/local-authority/32UC,Service Development Manager,Materials and Consumables,26/07/12,IJ00012392,4530,ESPO, 
East Lindsey District Council,http://statistics.data.gov.uk/id/local-authority/32UC,Horncastle Pool Manager,Materials and Consumables,26/07/12,IJ00012392,28.71,ESPO, 
East Lindsey District Council,http://statistics.data.gov.uk/id/local-authority/32UC,Business Development Manager,Materials and Consumables,26/07/12,IJ00012392,36.75,ESPO, 
East Lindsey District Council,http://statistics.data.gov.uk/id/local-authority/32UC,Embassy Pool Manager,Cleaning Contract,26/07/12,IJ00012392,277.99,ESPO, 
East Lindsey District Council,http://statistics.data.gov.uk/id/local-authority/32UC,Hsg Private Sector TL,Stationery,26/07/12,IJ00012392,8.78,ESPO, 
East Lindsey District Council,http://statistics.data.gov.uk/id/local-authority/32UC,Hsg Private Sector TL,Stationery,26/07/12,IJ00012392,6.29,ESPO, 
East Lindsey District Council,http://statistics.data.gov.uk/id/local-authority/32UC,Democracy Manager,Stationery,26/07/12,IJ00012392,39.35,ESPO, 
East Lindsey District Council,http://statistics.data.gov.uk/id/local-authority/32UC,Hsg Private Sector TL,Catering,26/07/12,IJ00012392,2.04,ESPO, 
East Lindsey District Council,http://statistics.data.gov.uk/id/local-authority/32UC,Democracy Manager,Stationery,26/07/12,IJ00012392,4.6,ESPO, 
East Lindsey District Council,http://statistics.data.gov.uk/id/local-authority/32UC,TL Property,Rent and Lease Payments,26/07/12,IJ00012206,6250,SKEG GRAIN LTD, 
East Lindsey District Council,http://statistics.data.gov.uk/id/local-authority/32UC,Hsg Advice & Homelessness TL,Bed and Breakfast Accommodation (Homelessness Service),26/07/12,IJ00012164,720,BEESTON LODGE HOTEL, 
East Lindsey District Council,http://statistics.data.gov.uk/id/local-authority/32UC,Theatre Manager,Advertising - Events,26/07/12,IJ00012337,500,NORTHCLIFFE MEDIA LIMITED, 
East Lindsey District Council,http://statistics.data.gov.uk/id/local-authority/32UC,Cultural & Related Services,Grants and Contributions- Where a Service is Received,26/07/12,IJ00012258,3000,SOUNDLINCS, 
East Lindsey District Council,http://statistics.data.gov.uk/id/local-authority/32UC,Corporate Accounting,Insurance,26/07/12,IJ00012144,2817.02,TRAVELERS INSURANCE COMPANY LIMITED, 
East Lindsey District Council,http://statistics.data.gov.uk/id/local-authority/32UC,Corporate Accounting,Insurance,26/07/12,IJ00012283,505.8,TRAVELERS INSURANCE COMPANY LIMITED, 
East Lindsey District Council,http://statistics.data.gov.uk/id/local-authority/32UC,Business Development Manager,Buildings Maintenance - Responsive,26/07/12,IJ00012294,598,VERE BROS (CONTRACTORS) LTD, 
East Lindsey District Council,http://statistics.data.gov.uk/id/local-authority/32UC,Business Development Manager,Buildings Maintenance - Programmed,26/07/12,IJ00012294,1971,VERE BROS (CONTRACTORS) LTD, 
East Lindsey District Council,http://statistics.data.gov.uk/id/local-authority/32UC,Technical Services Team Leader,Electricity,26/07/12,IJ00012378,536.48,E.ON ENERGY, 
East Lindsey District Council,http://statistics.data.gov.uk/id/local-authority/32UC,TL Property,Electricity,26/07/12,IJ00012378,12.14,E.ON ENERGY, 
East Lindsey District Council,http://statistics.data.gov.uk/id/local-authority/32UC,Enforcement Team Leader,Electricity,26/07/12,IJ00012378,7.79,E.ON ENERGY, 
East Lindsey District Council,http://statistics.data.gov.uk/id/local-authority/32UC,Service Development Manager,Electricity,26/07/12,IJ00012378,12.14,E.ON ENERGY, 
East Lindsey District Council,http://statistics.data.gov.uk/id/local-authority/32UC,Technical Services Team Leader,Electricity,26/07/12,IJ00012378,6.07,E.ON ENERGY, 
East Lindsey District Council,http://statistics.data.gov.uk/id/local-authority/32UC,Enforcement Team Leader,Electricity,26/07/12,IJ00012378,6.07,E.ON ENERGY, 
East Lindsey District Council,http://statistics.data.gov.uk/id/local-authority/32UC,Service Development Manager,Electricity,26/07/12,IJ00012378,45.08,E.ON ENERGY, 
East Lindsey District Council,http://statistics.data.gov.uk/id/local-authority/32UC,Technical Services Team Leader,Electricity,26/07/12,IJ00012375,1927.85,E.ON ENERGY, 
East Lindsey District Council,http://statistics.data.gov.uk/id/local-authority/32UC,Enforcement Team Leader,Electricity,26/07/12,IJ00012375,6.06,E.ON ENERGY, 
East Lindsey District Council,http://statistics.data.gov.uk/id/local-authority/32UC,Enforcement Team Leader,Electricity,26/07/12,IJ00012375,21.16,E.ON ENERGY, 
East Lindsey District Council,http://statistics.data.gov.uk/id/local-authority/32UC,Enforcement Team Leader,Electricity,26/07/12,IJ00012375,7.94,E.ON ENERGY, 
East Lindsey District Council,http://statistics.data.gov.uk/id/local-authority/32UC,Enforcement Team Leader,Electricity,26/07/12,IJ00012375,16.02,E.ON ENERGY, 
East Lindsey District Council,http://statistics.data.gov.uk/id/local-authority/32UC,Enforcement Team Leader,Electricity,26/07/12,IJ00012375,26.32,E.ON ENERGY, 
East Lindsey District Council,http://statistics.data.gov.uk/id/local-authority/32UC,Enforcement Team Leader,Electricity,26/07/12,IJ00012375,19.38,E.ON ENERGY, 
East Lindsey District Council,http://statistics.data.gov.uk/id/local-authority/32UC,Enforcement Team Leader,Electricity,26/07/12,IJ00012375,13.14,E.ON ENERGY, 
East Lindsey District Council,http://statistics.data.gov.uk/id/local-authority/32UC,Service Development Manager,Electricity,26/07/12,IJ00012375,4.62,E.ON ENERGY, 
East Lindsey District Council,http://statistics.data.gov.uk/id/local-authority/32UC,Improvement & Development Mngr,Commercial Vehicle Lease,26/07/12,IJ00012147,2778.41,ING LEASE (UK) LTD, 
East Lindsey District Council,http://statistics.data.gov.uk/id/local-authority/32UC,BALANCE  SHEET,Payroll-Gmbatu,26/07/12,IJ00012179,733.38,GMB NATIONAL ADMINISTRATION UNIT, 
East Lindsey District Council,http://statistics.data.gov.uk/id/local-authority/32UC,Development Control,Banking Charges,26/07/12,IJ00012152,6.47,CAPITA BUSINESS SERVICES LTD, 
East Lindsey District Council,http://statistics.data.gov.uk/id/local-authority/32UC,Enforcement Team Leader,Banking Charges,26/07/12,IJ00012152,118.18,CAPITA BUSINESS SERVICES LTD, 
East Lindsey District Council,http://statistics.data.gov.uk/id/local-authority/32UC,Hsg Bens Quality Assurance TL,Banking Charges,26/07/12,IJ00012152,41.02,CAPITA BUSINESS SERVICES LTD, 
East Lindsey District Council,http://statistics.data.gov.uk/id/local-authority/32UC,Debt Recovery TL,Banking Charges,26/07/12,IJ00012152,53.33,CAPITA BUSINESS SERVICES LTD, 
East Lindsey District Council,http://statistics.data.gov.uk/id/local-authority/32UC,Council Tax TL,Banking Charges,26/07/12,IJ00012152,2006.55,CAPITA BUSINESS SERVICES LTD, 
East Lindsey District Council,http://statistics.data.gov.uk/id/local-authority/32UC,Corporate Accounting,Banking Charges,26/07/12,IJ00012152,736.77,CAPITA BUSINESS SERVICES LTD, 
East Lindsey District Council,http://statistics.data.gov.uk/id/local-authority/32UC,Debt Recovery TL,Banking Charges,26/07/12,IJ00012152,48.9,CAPITA BUSINESS SERVICES LTD, 
East Lindsey District Council,http://statistics.data.gov.uk/id/local-authority/32UC,Capital WIP,Grants and Contributions to Outside Bodies- No Service Recei,26/07/12,IJ00012353,4160.17,DENNISS & MARWOOD, 
East Lindsey District Council,http://statistics.data.gov.uk/id/local-authority/32UC,Hsg Private Sector TL,Other Income,26/07/12,IJ00012353,-371.44,DENNISS & MARWOOD, 
East Lindsey District Council,http://statistics.data.gov.uk/id/local-authority/32UC,Capital WIP,Grants and Contributions to Outside Bodies- No Service Recei,26/07/12,IJ00012358,4332.02,DENNISS & MARWOOD, 
East Lindsey District Council,http://statistics.data.gov.uk/id/local-authority/32UC,Hsg Private Sector TL,Other Income,26/07/12,IJ00012358,-386.79,DENNISS & MARWOOD, 
East Lindsey District Council,http://statistics.data.gov.uk/id/local-authority/32UC,TL Property,Buildings Maintenance - Programmed,26/07/12,IJ00012305,630,AEGIS SERVICE & AFTERCARE LTD, 
East Lindsey District Council,http://statistics.data.gov.uk/id/local-authority/32UC,Policy & Project Manager,Buildings Maintenance - Programmed,26/07/12,IJ00012306,570,AEGIS SERVICE & AFTERCARE LTD, 
East Lindsey District Council,http://statistics.data.gov.uk/id/local-authority/32UC,Improvement & Development Mngr,Agency Staff,26/07/12,IJ00012217,3354.65,THE WORKSHOP (WISBECH) LIMITED, 
East Lindsey District Council,http://statistics.data.gov.uk/id/local-authority/32UC,TL IT - Network & Comms,Telephones,26/07/12,IJ00009323,2577.97,CABLE & WIRELESS WORLDWIDE, 
East Lindsey District Council,http://statistics.data.gov.uk/id/local-authority/32UC,TL IT - Network & Comms,Telephones,26/07/12,IJ00012229,999,CABLE & WIRELESS WORLDWIDE, 
East Lindsey District Council,http://statistics.data.gov.uk/id/local-authority/32UC,TL IT - Network & Comms,Telephones,26/07/12,IJ00012230,3448.76,CABLE & WIRELESS WORLDWIDE, 
East Lindsey District Council,http://statistics.data.gov.uk/id/local-authority/32UC,TL IT - Network & Comms,Telephones,26/07/12,IJ00012355,1565.23,CABLE & WIRELESS WORLDWIDE, 
East Lindsey District Council,http://statistics.data.gov.uk/id/local-authority/32UC,Capital WIP,Grants and Contributions to Outside Bodies- No Service Recei,26/07/12,IJ00012351,5816.15,HARRIS BUILDING SERVICES, 
East Lindsey District Council,http://statistics.data.gov.uk/id/local-authority/32UC,Hsg Private Sector TL,Other Income,26/07/12,IJ00012351,-519.3,HARRIS BUILDING SERVICES, 
East Lindsey District Council,http://statistics.data.gov.uk/id/local-authority/32UC,Policy & Project Manager,Grants and Contributions to Outside Bodies- No Service Recei,26/07/12,IJ00012124,4975,FOCUS CONSULTANTS 2010 LLP, 
East Lindsey District Council,http://statistics.data.gov.uk/id/local-authority/32UC,Business Development Manager,Buildings Maintenance - Responsive,26/07/12,IJ00012313,59.66,J TOMLINSON LTD, 
East Lindsey District Council,http://statistics.data.gov.uk/id/local-authority/32UC,TL Property,Buildings Maintenance - Responsive,26/07/12,IJ00012313,60.18,J TOMLINSON LTD, 
East Lindsey District Council,http://statistics.data.gov.uk/id/local-authority/32UC,TL Property,Buildings Maintenance - Responsive,26/07/12,IJ00012313,99.37,J TOMLINSON LTD, 
East Lindsey District Council,http://statistics.data.gov.uk/id/local-authority/32UC,Policy & Project Manager,Buildings Maintenance - Responsive,26/07/12,IJ00012313,20.92,J TOMLINSON LTD, 
East Lindsey District Council,http://statistics.data.gov.uk/id/local-authority/32UC,Policy & Project Manager,Buildings Maintenance - Responsive,26/07/12,IJ00012313,75.06,J TOMLINSON LTD, 
East Lindsey District Council,http://statistics.data.gov.uk/id/local-authority/32UC,Building Control,Buildings Maintenance - Responsive,26/07/12,IJ00012313,20.92,J TOMLINSON LTD, 
East Lindsey District Council,http://statistics.data.gov.uk/id/local-authority/32UC,Building Control,Buildings Maintenance - Responsive,26/07/12,IJ00012313,227.79,J TOMLINSON LTD, 
East Lindsey District Council,http://statistics.data.gov.uk/id/local-authority/32UC,Service Development Manager,Buildings Maintenance - Responsive,26/07/12,IJ00012313,20.92,J TOMLINSON LTD, 
East Lindsey District Council,http://statistics.data.gov.uk/id/local-authority/32UC,Service Development Manager,Buildings Maintenance - Responsive,26/07/12,IJ00012313,41.84,J TOMLINSON LTD, 
East Lindsey District Council,http://statistics.data.gov.uk/id/local-authority/32UC,Service Development Manager,Buildings Maintenance - Responsive,26/07/12,IJ00012313,20,J TOMLINSON LTD, 
East Lindsey District Council,http://statistics.data.gov.uk/id/local-authority/32UC,Service Development Manager,Buildings Maintenance - Responsive,26/07/12,IJ00012313,167.79,J TOMLINSON LTD, 
East Lindsey District Council,http://statistics.data.gov.uk/id/local-authority/32UC,Service Development Manager,Buildings Maintenance - Responsive,26/07/12,IJ00012313,183.55,J TOMLINSON LTD, 
East Lindsey District Council,http://statistics.data.gov.uk/id/local-authority/32UC,Service Development Manager,Buildings Maintenance - Responsive,26/07/12,IJ00012313,31.38,J TOMLINSON LTD, 
East Lindsey District Council,http://statistics.data.gov.uk/id/local-authority/32UC,Service Development Manager,Buildings Maintenance - Responsive,26/07/12,IJ00012313,73.22,J TOMLINSON LTD, 
East Lindsey District Council,http://statistics.data.gov.uk/id/local-authority/32UC,Service Development Manager,Buildings Maintenance - Responsive,26/07/12,IJ00012313,20.92,J TOMLINSON LTD, 
East Lindsey District Council,http://statistics.data.gov.uk/id/local-authority/32UC,Embassy Pool Manager,Buildings Maintenance - Responsive,26/07/12,IJ00012313,1879.48,J TOMLINSON LTD, 
East Lindsey District Council,http://statistics.data.gov.uk/id/local-authority/32UC,Embassy Pool Manager,Buildings Maintenance - Responsive,26/07/12,IJ00012313,109.83,J TOMLINSON LTD, 
East Lindsey District Council,http://statistics.data.gov.uk/id/local-authority/32UC,Embassy Pool Manager,Buildings Maintenance - Responsive,26/07/12,IJ00012313,75.47,J TOMLINSON LTD, 
East Lindsey District Council,http://statistics.data.gov.uk/id/local-authority/32UC,Embassy Pool Manager,Buildings Maintenance - Responsive,26/07/12,IJ00012313,78.45,J TOMLINSON LTD, 
East Lindsey District Council,http://statistics.data.gov.uk/id/local-authority/32UC,Meridian Facility Manager,Buildings Maintenance - Responsive,26/07/12,IJ00012313,39.23,J TOMLINSON LTD, 
East Lindsey District Council,http://statistics.data.gov.uk/id/local-authority/32UC,Meridian Facility Manager,Buildings Maintenance - Responsive,26/07/12,IJ00012313,20,J TOMLINSON LTD, 
East Lindsey District Council,http://statistics.data.gov.uk/id/local-authority/32UC,Meridian Facility Manager,Buildings Maintenance - Responsive,26/07/12,IJ00012313,31.38,J TOMLINSON LTD, 
East Lindsey District Council,http://statistics.data.gov.uk/id/local-authority/32UC,Service Development Manager,Buildings Maintenance - Responsive,26/07/12,IJ00012313,26.15,J TOMLINSON LTD, 
East Lindsey District Council,http://statistics.data.gov.uk/id/local-authority/32UC,Service Development Manager,Buildings Maintenance - Responsive,26/07/12,IJ00012313,41.84,J TOMLINSON LTD, 
East Lindsey District Council,http://statistics.data.gov.uk/id/local-authority/32UC,Service Development Manager,Buildings Maintenance - Responsive,26/07/12,IJ00012313,101.28,J TOMLINSON LTD, 
East Lindsey District Council,http://statistics.data.gov.uk/id/local-authority/32UC,Technical Services Team Leader,Buildings Maintenance - Programmed,26/07/12,IJ00012313,1320.33,J TOMLINSON LTD, 
East Lindsey District Council,http://statistics.data.gov.uk/id/local-authority/32UC,Technical Services Team Leader,Buildings Maintenance - Programmed,26/07/12,IJ00012313,2703.91,J TOMLINSON LTD, 
East Lindsey District Council,http://statistics.data.gov.uk/id/local-authority/32UC,Theatre Manager,Buildings Maintenance - Responsive,26/07/12,IJ00012313,26.15,J TOMLINSON LTD, 
East Lindsey District Council,http://statistics.data.gov.uk/id/local-authority/32UC,Service Development Manager,Buildings Maintenance - Responsive,26/07/12,IJ00012313,41.84,J TOMLINSON LTD, 
East Lindsey District Council,http://statistics.data.gov.uk/id/local-authority/32UC,Service Development Manager,Buildings Maintenance - Responsive,26/07/12,IJ00012313,36.61,J TOMLINSON LTD, 
East Lindsey District Council,http://statistics.data.gov.uk/id/local-authority/32UC,Service Development Manager,Buildings Maintenance - Responsive,26/07/12,IJ00012313,67.12,J TOMLINSON LTD, 
East Lindsey District Council,http://statistics.data.gov.uk/id/local-authority/32UC,Service Development Manager,Buildings Maintenance - Responsive,26/07/12,IJ00012313,20,J TOMLINSON LTD, 
East Lindsey District Council,http://statistics.data.gov.uk/id/local-authority/32UC,Service Development Manager,Buildings Maintenance - Responsive,26/07/12,IJ00012313,20,J TOMLINSON LTD, 
East Lindsey District Council,http://statistics.data.gov.uk/id/local-authority/32UC,TL Property,Buildings Maintenance - Responsive,26/07/12,IJ00012313,67.99,J TOMLINSON LTD, 
East Lindsey District Council,http://statistics.data.gov.uk/id/local-authority/32UC,Policy & Project Manager,Professional & Contractors Fees,26/07/12,IJ00012313,57.53,J TOMLINSON LTD, 
East Lindsey District Council,http://statistics.data.gov.uk/id/local-authority/32UC,Enforcement Team Leader,Buildings Maintenance - Responsive,26/07/12,IJ00012313,47.07,J TOMLINSON LTD, 
East Lindsey District Council,http://statistics.data.gov.uk/id/local-authority/32UC,Theatre Manager,Buildings Maintenance - Responsive,26/07/12,IJ00012313,366.1,J TOMLINSON LTD, 
East Lindsey District Council,http://statistics.data.gov.uk/id/local-authority/32UC,Theatre Manager,Buildings Maintenance - Responsive,26/07/12,IJ00012313,101.71,J TOMLINSON LTD, 
East Lindsey District Council,http://statistics.data.gov.uk/id/local-authority/32UC,TL Property,Buildings Maintenance - Responsive,26/07/12,IJ00012313,35.24,J TOMLINSON LTD, 
East Lindsey District Council,http://statistics.data.gov.uk/id/local-authority/32UC,Theatre Manager,Buildings Maintenance - Responsive,26/07/12,IJ00012313,119.19,J TOMLINSON LTD, 
East Lindsey District Council,http://statistics.data.gov.uk/id/local-authority/32UC,Service Development Manager,Buildings Maintenance - Responsive,26/07/12,IJ00012313,43.45,J TOMLINSON LTD, 
East Lindsey District Council,http://statistics.data.gov.uk/id/local-authority/32UC,Service Development Manager,Buildings Maintenance - Responsive,26/07/12,IJ00012313,52.3,J TOMLINSON LTD, 
East Lindsey District Council,http://statistics.data.gov.uk/id/local-authority/32UC,TL Property,Buildings Maintenance - Responsive,26/07/12,IJ00012313,41.84,J TOMLINSON LTD, 
East Lindsey District Council,http://statistics.data.gov.uk/id/local-authority/32UC,Service Development Manager,Buildings Maintenance - Responsive,26/07/12,IJ00012313,940.42,J TOMLINSON LTD, 
East Lindsey District Council,http://statistics.data.gov.uk/id/local-authority/32UC,Service Development Manager,Buildings Maintenance - Responsive,26/07/12,IJ00012313,805.88,J TOMLINSON LTD, 
East Lindsey District Council,http://statistics.data.gov.uk/id/local-authority/32UC,Embassy Pool Manager,Buildings Maintenance - Responsive,26/07/12,IJ00012313,147.83,J TOMLINSON LTD, 
East Lindsey District Council,http://statistics.data.gov.uk/id/local-authority/32UC,Embassy Pool Manager,Buildings Maintenance - Responsive,26/07/12,IJ00012313,54.92,J TOMLINSON LTD, 
East Lindsey District Council,http://statistics.data.gov.uk/id/local-authority/32UC,TL Property,Buildings Maintenance - Responsive,26/07/12,IJ00012313,21.92,J TOMLINSON LTD, 
East Lindsey District Council,http://statistics.data.gov.uk/id/local-authority/32UC,Service Development Manager,Buildings Maintenance - Responsive,26/07/12,IJ00012313,401.89,J TOMLINSON LTD, 
East Lindsey District Council,http://statistics.data.gov.uk/id/local-authority/32UC,Service Development Manager,Buildings Maintenance - Responsive,26/07/12,IJ00012313,20.68,J TOMLINSON LTD, 
East Lindsey District Council,http://statistics.data.gov.uk/id/local-authority/32UC,Service Development Manager,Materials and Consumables,26/07/12,IJ00012313,571.25,J TOMLINSON LTD, 
East Lindsey District Council,http://statistics.data.gov.uk/id/local-authority/32UC,Enforcement Team Leader,Buildings Maintenance - Responsive,26/07/12,IJ00012313,371.8,J TOMLINSON LTD, 
East Lindsey District Council,http://statistics.data.gov.uk/id/local-authority/32UC,Service Development Manager,Buildings Maintenance - Responsive,26/07/12,IJ00012313,62.76,J TOMLINSON LTD, 
East Lindsey District Council,http://statistics.data.gov.uk/id/local-authority/32UC,TL Property,Buildings Maintenance - Responsive,26/07/12,IJ00012313,241.5,J TOMLINSON LTD, 
East Lindsey District Council,http://statistics.data.gov.uk/id/local-authority/32UC,Service Development Manager,Buildings Maintenance - Responsive,26/07/12,IJ00012313,41.43,J TOMLINSON LTD, 
East Lindsey District Council,http://statistics.data.gov.uk/id/local-authority/32UC,TL Property,Buildings Maintenance - Responsive,26/07/12,IJ00012313,487.71,J TOMLINSON LTD, 
East Lindsey District Council,http://statistics.data.gov.uk/id/local-authority/32UC,Service Development Manager,Buildings Maintenance - Responsive,26/07/12,IJ00012313,304.27,J TOMLINSON LTD, 
East Lindsey District Council,http://statistics.data.gov.uk/id/local-authority/32UC,Enforcement Team Leader,Fees and Charges General,26/07/12,IJ00012169,1200,EVERTON CONSTRUCTION SERVICES LTD, 
East Lindsey District Council,http://statistics.data.gov.uk/id/local-authority/32UC,Improvement & Development Mngr,Professional & Contractors Fees,26/07/12,IJ00012140,538.23,CRANBERRY COMPOST PRODUCERS LTD, 
East Lindsey District Council,http://statistics.data.gov.uk/id/local-authority/32UC,Hsg Private Sector TL,Other Miscellaneous Expenses,26/07/12,IJ00012209,9250,SAFE & SOUND SECURITY SYSTEMS LINKS LTD, 
East Lindsey District Council,http://statistics.data.gov.uk/id/local-authority/32UC,Service Development Manager,Water and Sewerage Charges,26/07/12,IJ00012333,676.45,ANGLIAN WATER, 
East Lindsey District Council,http://statistics.data.gov.uk/id/local-authority/32UC,TL Property,Water and Sewerage Charges,26/07/12,IJ00012336,579.38,ANGLIAN WATER, 
East Lindsey District Council,http://statistics.data.gov.uk/id/local-authority/32UC,Business Development Manager,Water and Sewerage Charges,26/07/12,IJ00012343,8230.16,ANGLIAN WATER, 
East Lindsey District Council,http://statistics.data.gov.uk/id/local-authority/32UC,Meridian Facility Manager,Water and Sewerage Charges,26/07/12,IJ00012386,720.73,ANGLIAN WATER, 
East Lindsey District Council,http://statistics.data.gov.uk/id/local-authority/32UC,Embassy Pool Manager,Water and Sewerage Charges,26/07/12,IJ00012387,1991.23,ANGLIAN WATER, 
East Lindsey District Council,http://statistics.data.gov.uk/id/local-authority/32UC,Service Development Manager,Water and Sewerage Charges,26/07/12,IJ00012388,1354.29,ANGLIAN WATER, 
East Lindsey District Council,http://statistics.data.gov.uk/id/local-authority/32UC,Service Development Manager,Water and Sewerage Charges,26/07/12,IJ00012389,915.36,ANGLIAN WATER, 
East Lindsey District Council,http://statistics.data.gov.uk/id/local-authority/32UC,TL Property,Water and Sewerage Charges,26/07/12,IJ00012389,86.22,ANGLIAN WATER, 
East Lindsey District Council,http://statistics.data.gov.uk/id/local-authority/32UC,Service Development Manager,Water and Sewerage Charges,26/07/12,IJ00012391,1831.84,ANGLIAN WATER, 
East Lindsey District Council,http://statistics.data.gov.uk/id/local-authority/32UC,Waste Services Manager,Materials and Consumables,26/07/12,IJ00012159,4048,ESE LTD, 
East Lindsey District Council,http://statistics.data.gov.uk/id/local-authority/32UC,Hsg Advice & Homelessness TL,Grants and Contributions to Outside Bodies- No Service Recei,26/07/12,IJ00012225,575,HAWKINS PROPERT PARTNERSHIP RENTAL ACCOUNT, 
East Lindsey District Council,http://statistics.data.gov.uk/id/local-authority/32UC,Service Development Manager,Materials and Consumables,26/07/12,IJ00012161,2100,KRN HOUSE AND GARDEN PLANTS, 
East Lindsey District Council,http://statistics.data.gov.uk/id/local-authority/32UC,Service Development Manager,Materials and Consumables,26/07/12,IJ00012161,37037.8,KRN HOUSE AND GARDEN PLANTS, 
East Lindsey District Council,http://statistics.data.gov.uk/id/local-authority/32UC,Business Development Manager,Professional & Contractors Fees,26/07/12,IJ00012173,46,KINGS ARMOURED SECURITY SERVICES LTD, 
East Lindsey District Council,http://statistics.data.gov.uk/id/local-authority/32UC,Horncastle Pool Manager,Professional & Contractors Fees,26/07/12,IJ00012173,80.5,KINGS ARMOURED SECURITY SERVICES LTD, 
East Lindsey District Council,http://statistics.data.gov.uk/id/local-authority/32UC,Embassy Pool Manager,Professional & Contractors Fees,26/07/12,IJ00012173,131,KINGS ARMOURED SECURITY SERVICES LTD, 
East Lindsey District Council,http://statistics.data.gov.uk/id/local-authority/32UC,Theatre Manager,Professional & Contractors Fees,26/07/12,IJ00012173,46,KINGS ARMOURED SECURITY SERVICES LTD, 
East Lindsey District Council,http://statistics.data.gov.uk/id/local-authority/32UC,Sports Centre Manager,Professional & Contractors Fees,26/07/12,IJ00012173,80.5,KINGS ARMOURED SECURITY SERVICES LTD, 
East Lindsey District Council,http://statistics.data.gov.uk/id/local-authority/32UC,Meridian Facility Manager,Professional & Contractors Fees,26/07/12,IJ00012173,80.5,KINGS ARMOURED SECURITY SERVICES LTD, 
East Lindsey District Council,http://statistics.data.gov.uk/id/local-authority/32UC,Enforcement Team Leader,Professional & Contractors Fees,26/07/12,IJ00012173,330,KINGS ARMOURED SECURITY SERVICES LTD, 
East Lindsey District Council,http://statistics.data.gov.uk/id/local-authority/32UC,Corporate Accounting,Professional & Contractors Fees,26/07/12,IJ00012173,138,KINGS ARMOURED SECURITY SERVICES LTD, 
East Lindsey District Council,http://statistics.data.gov.uk/id/local-authority/32UC,Area Working,Furniture and Equipment,26/07/12,IJ00012156,767.1,Tennant Uk Cleaning Solutions Ltd, 
East Lindsey District Council,http://statistics.data.gov.uk/id/local-authority/32UC,Area Working,Furniture and Equipment,26/07/12,IJ00012156,767.1,Tennant Uk Cleaning Solutions Ltd, 
East Lindsey District Council,http://statistics.data.gov.uk/id/local-authority/32UC,IT Manager,Computer Hardware Purchase,26/07/12,IJ00012357,8000,SOFTCAT LIMITED, 
East Lindsey District Council,http://statistics.data.gov.uk/id/local-authority/32UC,Cultural & Related Services,Other Miscellaneous Expenses,26/07/12,IJ00012364,879.28,SOFTCAT LIMITED, 
East Lindsey District Council,http://statistics.data.gov.uk/id/local-authority/32UC,Capital WIP,Grants and Contributions to Outside Bodies- No Service Recei,26/07/12,IJ00012362,851.01,GEMMA MCDONALD, 
East Lindsey District Council,http://statistics.data.gov.uk/id/local-authority/32UC,TL Partnerships & Grants,Grants and Contributions to Outside Bodies- No Service Recei,26/07/12,IJ00012345,1581,AGE CONCERN LINDSEY, 
East Lindsey District Council,http://statistics.data.gov.uk/id/local-authority/32UC,TL IT - Network & Comms,Computer Hardware Purchase,26/07/12,IJ00012352,5037.38,INFRASYS LTD, 
East Lindsey District Council,http://statistics.data.gov.uk/id/local-authority/32UC,Corporate Accounting,Insurance,26/07/12,IJ00012342,1549.5,GREENWOODS SOLICITORS, 
East Lindsey District Council,http://statistics.data.gov.uk/id/local-authority/32UC,Cultural & Related Services,Other Miscellaneous Expenses,26/07/12,IJ00011806,2300,GREEN LIGHT TRAFFIC MANAGEMENT, 
East Lindsey District Council,http://statistics.data.gov.uk/id/local-authority/32UC,Health Team Leader,Public Courses and Workshops,26/07/12,IJ00012117,570.7,THE GOLF HOTEL, 
East Lindsey District Council,http://statistics.data.gov.uk/id/local-authority/32UC,Health Team Leader,Public Courses and Workshops,26/07/12,IJ00012117,27.5,THE GOLF HOTEL, 
East Lindsey District Council,http://statistics.data.gov.uk/id/local-authority/32UC,Service Development Manager,Buildings Maintenance - Programmed,26/07/12,IJ00012255,2417.69,CITY ELECTRICAL FACTORS LTD, 
East Lindsey District Council,http://statistics.data.gov.uk/id/local-authority/32UC,Theatre Manager,Performers and Entertainers Fees,26/07/12,IJ00012267,4500,GIFTWEND LTD, 
East Lindsey District Council,http://statistics.data.gov.uk/id/local-authority/32UC,Capital WIP,"Books, Magazines and Other Publications",26/07/12,IJ00012348,2835,BURGH RIFLE AND PISTOL CLUB, 
East Lindsey District Council,http://statistics.data.gov.uk/id/local-authority/32UC,Business Development Manager,Gas,31/07/12,IJ00012494,72.36,ESPO, 
East Lindsey District Council,http://statistics.data.gov.uk/id/local-authority/32UC,Business Development Manager,Gas,31/07/12,IJ00012494,54.65,ESPO, 
East Lindsey District Council,http://statistics.data.gov.uk/id/local-authority/32UC,TL Property,Electricity,31/07/12,IJ00012494,139.97,ESPO, 
East Lindsey District Council,http://statistics.data.gov.uk/id/local-authority/32UC,Theatre Manager,Electricity,31/07/12,IJ00012494,1189.73,ESPO, 
East Lindsey District Council,http://statistics.data.gov.uk/id/local-authority/32UC,TL Property,Gas,31/07/12,IJ00012494,958.56,ESPO, 
East Lindsey District Council,http://statistics.data.gov.uk/id/local-authority/32UC,TL Property,Gas,31/07/12,IJ00012494,283.49,ESPO, 
East Lindsey District Council,http://statistics.data.gov.uk/id/local-authority/32UC,TL Property,Gas,31/07/12,IJ00012494,1354.54,ESPO, 
East Lindsey District Council,http://statistics.data.gov.uk/id/local-authority/32UC,TL Property,Gas,31/07/12,IJ00012494,721.77,ESPO, 
East Lindsey District Council,http://statistics.data.gov.uk/id/local-authority/32UC,TL Property,Gas,31/07/12,IJ00012494,255.11,ESPO, 
East Lindsey District Council,http://statistics.data.gov.uk/id/local-authority/32UC,TL Property,Gas,31/07/12,IJ00012494,174.07,ESPO, 
East Lindsey District Council,http://statistics.data.gov.uk/id/local-authority/32UC,TL Property,Gas,31/07/12,IJ00012494,225.09,ESPO, 
East Lindsey District Council,http://statistics.data.gov.uk/id/local-authority/32UC,TL Property,Gas,31/07/12,IJ00012494,154.82,ESPO, 
East Lindsey District Council,http://statistics.data.gov.uk/id/local-authority/32UC,TL Property,Gas,31/07/12,IJ00012494,199.11,ESPO, 
East Lindsey District Council,http://statistics.data.gov.uk/id/local-authority/32UC,Policy & Project Manager,Gas,31/07/12,IJ00012494,227.49,ESPO, 
East Lindsey District Council,http://statistics.data.gov.uk/id/local-authority/32UC,Policy & Project Manager,Gas,31/07/12,IJ00012494,150.68,ESPO, 
East Lindsey District Council,http://statistics.data.gov.uk/id/local-authority/32UC,TL Property,Gas,31/07/12,IJ00012494,127.06,ESPO, 
East Lindsey District Council,http://statistics.data.gov.uk/id/local-authority/32UC,TL Property,Gas,31/07/12,IJ00012494,87.85,ESPO, 
East Lindsey District Council,http://statistics.data.gov.uk/id/local-authority/32UC,Policy & Project Manager,Gas,31/07/12,IJ00012494,32.69,ESPO, 
East Lindsey District Council,http://statistics.data.gov.uk/id/local-authority/32UC,Policy & Project Manager,Gas,31/07/12,IJ00012494,30.84,ESPO, 
East Lindsey District Council,http://statistics.data.gov.uk/id/local-authority/32UC,Horncastle Pool Manager,Gas,31/07/12,IJ00012494,1648.45,ESPO, 
East Lindsey District Council,http://statistics.data.gov.uk/id/local-authority/32UC,Horncastle Pool Manager,Gas,31/07/12,IJ00012494,2426.19,ESPO, 
East Lindsey District Council,http://statistics.data.gov.uk/id/local-authority/32UC,Horncastle Pool Manager,Gas,31/07/12,IJ00012494,1957.81,ESPO, 
East Lindsey District Council,http://statistics.data.gov.uk/id/local-authority/32UC,Horncastle Pool Manager,Gas,31/07/12,IJ00012494,1665.33,ESPO, 
East Lindsey District Council,http://statistics.data.gov.uk/id/local-authority/32UC,Horncastle Pool Manager,Gas,31/07/12,IJ00012494,-1586.31,ESPO, 
East Lindsey District Council,http://statistics.data.gov.uk/id/local-authority/32UC,Embassy Pool Manager,Gas,31/07/12,IJ00012494,3291.33,ESPO, 
East Lindsey District Council,http://statistics.data.gov.uk/id/local-authority/32UC,Embassy Pool Manager,Gas,31/07/12,IJ00012494,4635.96,ESPO, 
East Lindsey District Council,http://statistics.data.gov.uk/id/local-authority/32UC,Theatre Manager,Gas,31/07/12,IJ00012494,1141.72,ESPO, 
East Lindsey District Council,http://statistics.data.gov.uk/id/local-authority/32UC,Sports Centre Manager,Gas,31/07/12,IJ00012494,218.94,ESPO, 
East Lindsey District Council,http://statistics.data.gov.uk/id/local-authority/32UC,Sports Centre Manager,Gas,31/07/12,IJ00012494,215.25,ESPO, 
East Lindsey District Council,http://statistics.data.gov.uk/id/local-authority/32UC,Meridian Facility Manager,Gas,31/07/12,IJ00012494,140.26,ESPO, 
East Lindsey District Council,http://statistics.data.gov.uk/id/local-authority/32UC,Meridian Facility Manager,Gas,31/07/12,IJ00012494,96,ESPO, 
East Lindsey District Council,http://statistics.data.gov.uk/id/local-authority/32UC,Meridian Facility Manager,Gas,31/07/12,IJ00012494,37.46,ESPO, 
East Lindsey District Council,http://statistics.data.gov.uk/id/local-authority/32UC,Policy & Project Manager,Gas,31/07/12,IJ00012494,211.58,ESPO, 
East Lindsey District Council,http://statistics.data.gov.uk/id/local-authority/32UC,Policy & Project Manager,Gas,31/07/12,IJ00012494,289.53,ESPO, 
East Lindsey District Council,http://statistics.data.gov.uk/id/local-authority/32UC,Service Development Manager,Gas,31/07/12,IJ00012494,36.57,ESPO, 
East Lindsey District Council,http://statistics.data.gov.uk/id/local-authority/32UC,Service Development Manager,Gas,31/07/12,IJ00012494,33.18,ESPO, 
East Lindsey District Council,http://statistics.data.gov.uk/id/local-authority/32UC,Meridian Facility Manager,Electricity,31/07/12,IJ00012494,33.93,ESPO, 
East Lindsey District Council,http://statistics.data.gov.uk/id/local-authority/32UC,SM Economic Regen & Property,Gas,31/07/12,IJ00012494,31,ESPO, 
East Lindsey District Council,http://statistics.data.gov.uk/id/local-authority/32UC,SM Economic Regen & Property,Gas,31/07/12,IJ00012494,30,ESPO, 
